Publisher Label,Publisher URI,"Supplier","Net Amount (£)","Organisational Unit","Merchant Category Code","Purpose","Payment Date"
"Wolverhampton City Council","http://opendatacommunities.org/id/metropolitan-district-council/wolverhampton","Amazon UK Marketplace","30.92","Technical Support","5942","Computing - Purchase of Hardware","29/01/2016"
"Wolverhampton City Council","http://opendatacommunities.org/id/metropolitan-district-council/wolverhampton","LOVE2SHOP.CO.UK","380.95","Information & Intelligence","8641","Events","29/01/2016"
"Wolverhampton City Council","http://opendatacommunities.org/id/metropolitan-district-council/wolverhampton","TESCO STORES 3414","6.15","Customer Services","5411","Provisions (Not for resale)","29/01/2016"
"Wolverhampton City Council","http://opendatacommunities.org/id/metropolitan-district-council/wolverhampton","ARGOS LTD","43.96","LAC Transitions Team","5310","Client Allowances","29/01/2016"
"Wolverhampton City Council","http://opendatacommunities.org/id/metropolitan-district-council/wolverhampton","WEST COAST TRAINS","7.50","Economic Development","4112","Public Transport","29/01/2016"
"Wolverhampton City Council","http://opendatacommunities.org/id/metropolitan-district-council/wolverhampton","KONICA MINOLTA BUSINES","168.21","Music Support Team","7399","Equipment - R & M","29/01/2016"
"Wolverhampton City Council","http://opendatacommunities.org/id/metropolitan-district-council/wolverhampton","Amazon UK Marketplace","5.28","MAST 6 - Priory Green","5942","Equipment - R & M","29/01/2016"
"Wolverhampton City Council","http://opendatacommunities.org/id/metropolitan-district-council/wolverhampton","OFFICE DEPOT","109.23","MAST 6 - Priory Green","5111","Stationery","29/01/2016"
"Wolverhampton City Council","http://opendatacommunities.org/id/metropolitan-district-council/wolverhampton","Amazon UK Marketplace","14.15","MAST 6 - Priory Green","5942","Stationery","29/01/2016"
"Wolverhampton City Council","http://opendatacommunities.org/id/metropolitan-district-council/wolverhampton","POUNDLAND LTD 1463","3.00","Customer Services","5310","Equipment - Purchase","29/01/2016"
"Wolverhampton City Council","http://opendatacommunities.org/id/metropolitan-district-council/wolverhampton","THE POST OFFICE","111.50","Looked After Team 1","9402","Comms - Postage","29/01/2016"
"Wolverhampton City Council","http://opendatacommunities.org/id/metropolitan-district-council/wolverhampton","POST OFFICE COUNTER","240.00","Information & Intelligence","9402","Gratuities","29/01/2016"
"Wolverhampton City Council","http://opendatacommunities.org/id/metropolitan-district-council/wolverhampton","UNI CAM ESALES","24.17","SEN Sensory Inclusion","8220","Equipment - Purchase","29/01/2016"
"Wolverhampton City Council","http://opendatacommunities.org/id/metropolitan-district-council/wolverhampton","OFFICE DEPOT","20.87","MAST 1 - Deansfield","5111","Stationery","29/01/2016"
"Wolverhampton City Council","http://opendatacommunities.org/id/metropolitan-district-council/wolverhampton","TRAINLINE","14.53","LAC Admin Team","4112","Public Transport","29/01/2016"
"Wolverhampton City Council","http://opendatacommunities.org/id/metropolitan-district-council/wolverhampton","Virgintrains.co.uk","33.20","Mayoral Expenses","4112","Public Transport","29/01/2016"
"Wolverhampton City Council","http://opendatacommunities.org/id/metropolitan-district-council/wolverhampton","ARGOS RETAIL GROUP","211.62","LAC Transitions Team","5310","Client Allowances","29/01/2016"
"Wolverhampton City Council","http://opendatacommunities.org/id/metropolitan-district-council/wolverhampton","PC WORLD ONLINE","69.99","Headstart","5732","Car Allowances","29/01/2016"
"Wolverhampton City Council","http://opendatacommunities.org/id/metropolitan-district-council/wolverhampton","OFFICE DEPOT","17.25","MAST 6 - Priory Green","5111","Stationery","29/01/2016"
"Wolverhampton City Council","http://opendatacommunities.org/id/metropolitan-district-council/wolverhampton","COZENS & COLE LTD","212.04","Civic Centre","5251","Equipment - Purchase","29/01/2016"
"Wolverhampton City Council","http://opendatacommunities.org/id/metropolitan-district-council/wolverhampton","ARGOS LTD","15.82","LAC Transitions Team","5310","Client Allowances","29/01/2016"
"Wolverhampton City Council","http://opendatacommunities.org/id/metropolitan-district-council/wolverhampton","Amazon UK Marketplace","18.00","Aldersley Leisure Village","5942","Equipment - Purchase","29/01/2016"
"Wolverhampton City Council","http://opendatacommunities.org/id/metropolitan-district-council/wolverhampton","CORPORATE WEAR LTD","-531.67","Register Office","7399","Clothing / Uniforms","29/01/2016"
"Wolverhampton City Council","http://opendatacommunities.org/id/metropolitan-district-council/wolverhampton","NATIONALITY DIRECTORAT","749.00","Valley Park - CIN SWU S17","9399","TPP - Payments to Local Authorities","29/01/2016"
"Wolverhampton City Council","http://opendatacommunities.org/id/metropolitan-district-council/wolverhampton","CURRYS S/S","145.82","LAC Transitions Team","5732","Client Allowances","29/01/2016"
"Wolverhampton City Council","http://opendatacommunities.org/id/metropolitan-district-council/wolverhampton","TRAINLINE","180.85","Safeguarding Admin Resource","4112","Public Transport","29/01/2016"
"Wolverhampton City Council","http://opendatacommunities.org/id/metropolitan-district-council/wolverhampton","REDWINGS LODGE","219.80","Referral Team CIN - S17","7011","Services - Supplies & Services to users","29/01/2016"
"Wolverhampton City Council","http://opendatacommunities.org/id/metropolitan-district-council/wolverhampton","WEST COAST TRAINS","109.00","Older People Assessment & Care Mgmt","4112","Public Transport","28/01/2016"
"Wolverhampton City Council","http://opendatacommunities.org/id/metropolitan-district-council/wolverhampton","Amazon Svcs Europe,SAR","17.05","Global Budgets","5942","Books","28/01/2016"
"Wolverhampton City Council","http://opendatacommunities.org/id/metropolitan-district-council/wolverhampton","Virgintrains.co.uk","255.00","Looked After Team 1","4112","Public Transport","28/01/2016"
"Wolverhampton City Council","http://opendatacommunities.org/id/metropolitan-district-council/wolverhampton","Amazon UK Marketplace","7.70","Bilston Museum","5942","Materials for resale","28/01/2016"
"Wolverhampton City Council","http://opendatacommunities.org/id/metropolitan-district-council/wolverhampton","DAYS HOTEL COVENTR","240.00","Priory Green - CIN SWU S17","7011","Accommodation Costs","28/01/2016"
"Wolverhampton City Council","http://opendatacommunities.org/id/metropolitan-district-council/wolverhampton","TESCO STORES 6727","9.45","Youth Offending Team","5411","Provisions (Not for resale)","28/01/2016"
"Wolverhampton City Council","http://opendatacommunities.org/id/metropolitan-district-council/wolverhampton","COMBINED COURT","2690.00","Head of Service - CINCP","9222","Services - Professional Fees","28/01/2016"
"Wolverhampton City Council","http://opendatacommunities.org/id/metropolitan-district-council/wolverhampton","FACEBOOK F6NB48NB92","591.83","Communications & Marketing - General","7311","Marketing \ Non-staff advertising","28/01/2016"
"Wolverhampton City Council","http://opendatacommunities.org/id/metropolitan-district-council/wolverhampton","OFFICE DEPOT","39.32","Community Access & Leisure - North","5111","Stationery","28/01/2016"
"Wolverhampton City Council","http://opendatacommunities.org/id/metropolitan-district-council/wolverhampton","FACEBOOK G6NB48NB92","8.37","Communications & Marketing - General","7311","Marketing \ Non-staff advertising","28/01/2016"
"Wolverhampton City Council","http://opendatacommunities.org/id/metropolitan-district-council/wolverhampton","RICHARD WILLIAMS","72.41","Towers Outdoor Education Centre","5211","Equipment - Purchase","28/01/2016"
"Wolverhampton City Council","http://opendatacommunities.org/id/metropolitan-district-council/wolverhampton","NOTEMACHINE","250.00","Priory Green - CIN SWU S17","6011","Financial Assistance In Exceptional Circ","28/01/2016"
"Wolverhampton City Council","http://opendatacommunities.org/id/metropolitan-district-council/wolverhampton","REGISTRARS OFFICE","11.00","Looked After Team 1","8299","Services - Fees and Charges","28/01/2016"
"Wolverhampton City Council","http://opendatacommunities.org/id/metropolitan-district-council/wolverhampton","FUEL CARD SERVICES LTD","116.96","Towers Outdoor Education Centre","7399","Petrol","28/01/2016"
"Wolverhampton City Council","http://opendatacommunities.org/id/metropolitan-district-council/wolverhampton","SAINSBURYS (2340)","11.20","Civic Centre Catering","5411","Provisions (Not for resale)","28/01/2016"
"Wolverhampton City Council","http://opendatacommunities.org/id/metropolitan-district-council/wolverhampton","CENTURY ELECTRICAL WHO","12.35","Caretakers Community Centre","5065","R&M - Departmental planned (external)","28/01/2016"
"Wolverhampton City Council","http://opendatacommunities.org/id/metropolitan-district-council/wolverhampton","WM MORRISON 024","12.34","Ernest Bold Court","5411","Provisions (Not for resale)","28/01/2016"
"Wolverhampton City Council","http://opendatacommunities.org/id/metropolitan-district-council/wolverhampton","HIRE STATION-LTD","65.00","Fountain Maintenance","7394","R&M - Departmental planned (external)","28/01/2016"
"Wolverhampton City Council","http://opendatacommunities.org/id/metropolitan-district-council/wolverhampton","TFM FARM & COUNTRY SUP","166.87","Northicote Farm","5399","Materials","28/01/2016"
"Wolverhampton City Council","http://opendatacommunities.org/id/metropolitan-district-council/wolverhampton","ASDA SUPERSTORE","200.00","Valley Park - CIN SWU S17","5411","Provisions (Not for resale)","28/01/2016"
"Wolverhampton City Council","http://opendatacommunities.org/id/metropolitan-district-council/wolverhampton","ASDA SUPERSTORE","284.50","LAC Transitions Team","5411","Provisions (Not for resale)","28/01/2016"
"Wolverhampton City Council","http://opendatacommunities.org/id/metropolitan-district-council/wolverhampton","TFM FARM & COUNTRY SUP","17.61","Northicote Farm","5399","Materials","28/01/2016"
"Wolverhampton City Council","http://opendatacommunities.org/id/metropolitan-district-council/wolverhampton","WWW.FENLANDLEISURE.CO.","67.50","Parks - Management and Admin","5641","Equipment - Purchase","28/01/2016"
"Wolverhampton City Council","http://opendatacommunities.org/id/metropolitan-district-council/wolverhampton","LIDL UK","5.97","Windmill Lane - Respite Home","5411","Provisions (Not for resale)","28/01/2016"
"Wolverhampton City Council","http://opendatacommunities.org/id/metropolitan-district-council/wolverhampton","HSBC INVOICE FINAN","354.32","Towers Outdoor Education Centre","6012","Laundry Expenses","28/01/2016"
"Wolverhampton City Council","http://opendatacommunities.org/id/metropolitan-district-council/wolverhampton","WOMEN MAKE MOVIES","159.97","Art Gallery","7395","Publications","28/01/2016"
"Wolverhampton City Council","http://opendatacommunities.org/id/metropolitan-district-council/wolverhampton","ASDA STORES 4452","7.00","Civic Centre Catering","5411","Provisions (Not for resale)","28/01/2016"
"Wolverhampton City Council","http://opendatacommunities.org/id/metropolitan-district-council/wolverhampton","CURRYS ONLINE","183.32","LAC Transitions Team","5732","Client Allowances","28/01/2016"
"Wolverhampton City Council","http://opendatacommunities.org/id/metropolitan-district-council/wolverhampton","ASDA SUPERSTORE","14.00","Valley Park - CIN SWU S17","5411","Financial Assistance In Exceptional Circ","28/01/2016"
"Wolverhampton City Council","http://opendatacommunities.org/id/metropolitan-district-council/wolverhampton","B C H","35.00","Graiseley - CIN SWU S17","7011","Services - Supplies & Services to users","28/01/2016"
"Wolverhampton City Council","http://opendatacommunities.org/id/metropolitan-district-council/wolverhampton","SAIN WEDNESFIELD","50.00","Duke Street Bungalows","6011","Financial Assistance In Exceptional Circ","28/01/2016"
"Wolverhampton City Council","http://opendatacommunities.org/id/metropolitan-district-council/wolverhampton","C L JONES LIMITED","155.76","Towers Outdoor Education Centre","5211","Fixtures and Fittings - Purchases","28/01/2016"
"Wolverhampton City Council","http://opendatacommunities.org/id/metropolitan-district-council/wolverhampton","BOOKDEPOSITORY.COM","35.68","Bilston Museum","5942","Books","28/01/2016"
"Wolverhampton City Council","http://opendatacommunities.org/id/metropolitan-district-council/wolverhampton","WWW.NURTUREGROUPS.ORG","64.95","Psychology Service","8398","Services - Supplies & Services to users","28/01/2016"
"Wolverhampton City Council","http://opendatacommunities.org/id/metropolitan-district-council/wolverhampton","BARCLAYS BANK PLC","250.00","Valley Park - CIN SWU S17","6011","Financial Assistance In Exceptional Circ","28/01/2016"
"Wolverhampton City Council","http://opendatacommunities.org/id/metropolitan-district-council/wolverhampton","REGISTRARS OFFICE","11.00","Childrens with Disabilities Team","8299","Services - Fees and Charges","28/01/2016"
"Wolverhampton City Council","http://opendatacommunities.org/id/metropolitan-district-council/wolverhampton","THE CONSORTIUM/WMS","132.29","Education And Access","5968","Subscriptions","27/01/2016"
"Wolverhampton City Council","http://opendatacommunities.org/id/metropolitan-district-council/wolverhampton","PC WORLD","474.16","MAST 5 - Valley Park","5732","Equipment - Purchase","27/01/2016"
"Wolverhampton City Council","http://opendatacommunities.org/id/metropolitan-district-council/wolverhampton","OFFICE DEPOT","62.49","Financial Assessments","5111","Stationery","27/01/2016"
"Wolverhampton City Council","http://opendatacommunities.org/id/metropolitan-district-council/wolverhampton","WEST MID TRAVEL","829.10","Banking","4131","Public Transport","27/01/2016"
"Wolverhampton City Council","http://opendatacommunities.org/id/metropolitan-district-council/wolverhampton","SAINSBURYS 2040","20.00","Duke Street Bungalows","5411","Provisions (Not for resale)","27/01/2016"
"Wolverhampton City Council","http://opendatacommunities.org/id/metropolitan-district-council/wolverhampton","ROYAL CARPETS","108.32","LAC Transitions Team","5713","Independant Living Allowance","27/01/2016"
"Wolverhampton City Council","http://opendatacommunities.org/id/metropolitan-district-council/wolverhampton","OFFICE DEPOT","23.70","Ground Maintenance Overheads","5111","Stationery","27/01/2016"
"Wolverhampton City Council","http://opendatacommunities.org/id/metropolitan-district-council/wolverhampton","EAST & WEST AID","319.00","Graiseley - CIN SWU S17","8398","Furniture","27/01/2016"
"Wolverhampton City Council","http://opendatacommunities.org/id/metropolitan-district-council/wolverhampton","JUICY FRUITS","175.51","Children's Village Nursery","5411","School Meals","27/01/2016"
"Wolverhampton City Council","http://opendatacommunities.org/id/metropolitan-district-council/wolverhampton","OFFICE DEPOT","73.97","Travelwise","5111","Stationery","27/01/2016"
"Wolverhampton City Council","http://opendatacommunities.org/id/metropolitan-district-council/wolverhampton","OFFICE DEPOT","73.62","Headstart","5111","Car Allowances","27/01/2016"
"Wolverhampton City Council","http://opendatacommunities.org/id/metropolitan-district-council/wolverhampton","COOKSON PRECIOUS M","351.88","AES Staff Development","5094","Equipment - Purchase","27/01/2016"
"Wolverhampton City Council","http://opendatacommunities.org/id/metropolitan-district-council/wolverhampton","TFM FARM & COUNTRY SUP","45.22","Northicote Farm","5399","Equipment - Purchase","27/01/2016"
"Wolverhampton City Council","http://opendatacommunities.org/id/metropolitan-district-council/wolverhampton","SAIN WEDNESFIELD","150.00","Duke Street Bungalows","6011","Financial Assistance In Exceptional Circ","27/01/2016"
"Wolverhampton City Council","http://opendatacommunities.org/id/metropolitan-district-council/wolverhampton","G & M HALE LTD","144.35","College of Further Education","5992","Equipment - Purchase","27/01/2016"
"Wolverhampton City Council","http://opendatacommunities.org/id/metropolitan-district-council/wolverhampton","OFFICE DEPOT","54.48","Global Budgets","5111","Stationery","27/01/2016"
"Wolverhampton City Council","http://opendatacommunities.org/id/metropolitan-district-council/wolverhampton","ASDA HOME SHOPPING","87.61","Ernest Bold Court","5411","Provisions (Not for resale)","27/01/2016"
"Wolverhampton City Council","http://opendatacommunities.org/id/metropolitan-district-council/wolverhampton","OFFICE DEPOT","59.82","Safeguarding Admin Resource","5111","Stationery","27/01/2016"
"Wolverhampton City Council","http://opendatacommunities.org/id/metropolitan-district-council/wolverhampton","Virgintrains.co.uk","69.00","Members Expenses","4112","Public Transport","27/01/2016"
"Wolverhampton City Council","http://opendatacommunities.org/id/metropolitan-district-council/wolverhampton","OFFICE DEPOT","37.14","Connexions Contract","5111","Stationery","27/01/2016"
"Wolverhampton City Council","http://opendatacommunities.org/id/metropolitan-district-council/wolverhampton","ARGOS LTD","162.48","LAC Transitions Team","5310","Equipment - Purchase","27/01/2016"
"Wolverhampton City Council","http://opendatacommunities.org/id/metropolitan-district-council/wolverhampton","POST OFFICE COUNTER","54.00","Childrens Centres & Early Years","9402","Comms - Postage","27/01/2016"
"Wolverhampton City Council","http://opendatacommunities.org/id/metropolitan-district-council/wolverhampton","A F BLAKEMORE & SON LT","4.95","Mayoral Expenses","5411","Hospitality","27/01/2016"
"Wolverhampton City Council","http://opendatacommunities.org/id/metropolitan-district-council/wolverhampton","WOLVERHAMPTON CC","10.00","Headstart","7523","Car Allowances","27/01/2016"
"Wolverhampton City Council","http://opendatacommunities.org/id/metropolitan-district-council/wolverhampton","NETWORK WEST MIDLANDS","168.00","Bilston 2 - CIN SWU S17","9399","Client Transport","27/01/2016"
"Wolverhampton City Council","http://opendatacommunities.org/id/metropolitan-district-council/wolverhampton","PARCELFORCE WORLDWIDE","16.40","Contemporary Gallery","4214","Comms - Postage","27/01/2016"
"Wolverhampton City Council","http://opendatacommunities.org/id/metropolitan-district-council/wolverhampton","BRITISH HEART FOUNDATI","195.83","LAC Transitions Team","8398","Independant Living Allowance","27/01/2016"
"Wolverhampton City Council","http://opendatacommunities.org/id/metropolitan-district-council/wolverhampton","WWW.SEVERNTRENTSEARCHE","290.00","HRA General","4900","Services - Professional Fees","27/01/2016"
"Wolverhampton City Council","http://opendatacommunities.org/id/metropolitan-district-council/wolverhampton","B&M RETAIL","49.96","LAC Transitions Team","5310","Independant Living Allowance","27/01/2016"
"Wolverhampton City Council","http://opendatacommunities.org/id/metropolitan-district-council/wolverhampton","G & M HALE (SUNDRIES)","15.63","Creative Studies Delivery Area","5992","Materials for resale","27/01/2016"
"Wolverhampton City Council","http://opendatacommunities.org/id/metropolitan-district-council/wolverhampton","Virgintrains.co.uk","263.00","Members Expenses","4112","Public Transport","27/01/2016"
"Wolverhampton City Council","http://opendatacommunities.org/id/metropolitan-district-council/wolverhampton","WWW.BAKERROSS.CO.UK","97.49","Education And Access","5970","Materials","27/01/2016"
"Wolverhampton City Council","http://opendatacommunities.org/id/metropolitan-district-council/wolverhampton","PC WORLD ONLINE","316.66","MAST 5 - Valley Park","5732","Equipment - Purchase","27/01/2016"
"Wolverhampton City Council","http://opendatacommunities.org/id/metropolitan-district-council/wolverhampton","TRAINLINE","146.88","Looked After Team 1","4112","Public Transport","27/01/2016"
"Wolverhampton City Council","http://opendatacommunities.org/id/metropolitan-district-council/wolverhampton","SAIN WEDNESFIELD","150.00","Duke Street Bungalows","6011","Room Hire","27/01/2016"
"Wolverhampton City Council","http://opendatacommunities.org/id/metropolitan-district-council/wolverhampton","BRITISH HEART FOUNDATI","108.33","LAC Transitions Team","8398","Independant Living Allowance","27/01/2016"
"Wolverhampton City Council","http://opendatacommunities.org/id/metropolitan-district-council/wolverhampton","ALDI","21.11","Economic Inclusion","5411","Provisions (Not for resale)","27/01/2016"
"Wolverhampton City Council","http://opendatacommunities.org/id/metropolitan-district-council/wolverhampton","ASDA HOME SHOPPING","-0.26","Ernest Bold Court","5411","Provisions (Not for resale)","27/01/2016"
"Wolverhampton City Council","http://opendatacommunities.org/id/metropolitan-district-council/wolverhampton","POST OFFICE COUNTER","63.00","MAST 2 - Bilston","9402","Comms - Postage","27/01/2016"
"Wolverhampton City Council","http://opendatacommunities.org/id/metropolitan-district-council/wolverhampton","OFFICE DEPOT","40.85","Carers Support","5111","Stationery","27/01/2016"
"Wolverhampton City Council","http://opendatacommunities.org/id/metropolitan-district-council/wolverhampton","WWW.SEVERNTRENTSEARCHE","455.00","HRA General","4900","Services - Professional Fees","27/01/2016"
"Wolverhampton City Council","http://opendatacommunities.org/id/metropolitan-district-council/wolverhampton","ASDA SUPERSTORE","13.50","Valley Park - CIN SWU S17","5411","Provisions (Not for resale)","26/01/2016"
"Wolverhampton City Council","http://opendatacommunities.org/id/metropolitan-district-council/wolverhampton","Amazon UK Marketplace","18.16","Bert Williams Leisure Centre","5942","Equipment - Purchase","26/01/2016"
"Wolverhampton City Council","http://opendatacommunities.org/id/metropolitan-district-council/wolverhampton","EE & T-MOBILE","101.60","Civic Halls Non Direct Management A/C","4814","Comms - Telephone Call charges","26/01/2016"
"Wolverhampton City Council","http://opendatacommunities.org/id/metropolitan-district-council/wolverhampton","cartridgesave.co.uk","28.30","City Direct","5943","Stationery","26/01/2016"
"Wolverhampton City Council","http://opendatacommunities.org/id/metropolitan-district-council/wolverhampton","Virgintrains.co.uk","185.00","Public Health Support Costs","4112","Public Transport","26/01/2016"
"Wolverhampton City Council","http://opendatacommunities.org/id/metropolitan-district-council/wolverhampton","TRAINLINE","67.83","Collections & Conservation","4112","Public Transport","26/01/2016"
"Wolverhampton City Council","http://opendatacommunities.org/id/metropolitan-district-council/wolverhampton","BLACK COUNTRY SKIP HIR","108.00","Avenues - CIN SWU S17","7394","Equipment - Purchase","26/01/2016"
"Wolverhampton City Council","http://opendatacommunities.org/id/metropolitan-district-council/wolverhampton","CARESHOP","27.04","Ernest Bold Court","5999","Cleaning Supplies and Materials","26/01/2016"
"Wolverhampton City Council","http://opendatacommunities.org/id/metropolitan-district-council/wolverhampton","WWW.BAKERROSS.CO.UK","25.79","Bilston Museum","5970","Materials for resale","26/01/2016"
"Wolverhampton City Council","http://opendatacommunities.org/id/metropolitan-district-council/wolverhampton","REDWINGS LODGE","33.29","Emergency Duty Team","7011","Services - Supplies & Services to users","26/01/2016"
"Wolverhampton City Council","http://opendatacommunities.org/id/metropolitan-district-council/wolverhampton","COMBINED COURT","435.00","HRA General","9222","Services - Professional Fees","26/01/2016"
"Wolverhampton City Council","http://opendatacommunities.org/id/metropolitan-district-council/wolverhampton","ASDA SUPERSTORE","27.00","Whitmore Reans - CIN SWU S17","5411","Provisions (Not for resale)","26/01/2016"
"Wolverhampton City Council","http://opendatacommunities.org/id/metropolitan-district-council/wolverhampton","ASDA HOME SHOPPING","182.67","Upper Pendeford Farm Childrens Home","5411","Provisions (Not for resale)","26/01/2016"
"Wolverhampton City Council","http://opendatacommunities.org/id/metropolitan-district-council/wolverhampton","OFFICE DEPOT","13.08","Benefits","5111","Stationery","26/01/2016"
"Wolverhampton City Council","http://opendatacommunities.org/id/metropolitan-district-council/wolverhampton","DAYS HOTEL COVENTR","170.00","Priory Green - CIN SWU S17","7011","Accommodation Costs","26/01/2016"
"Wolverhampton City Council","http://opendatacommunities.org/id/metropolitan-district-council/wolverhampton","THE QUEEN VICTORIA HOT","58.80","Whitmore Reans - CIN SWU S17","7011","Services - Supplies & Services to users","26/01/2016"
"Wolverhampton City Council","http://opendatacommunities.org/id/metropolitan-district-council/wolverhampton","WWW.VIKING-DIRECT.CO.U","15.88","Buisness Continuity & Emergency Planning","5111","Stationery","26/01/2016"
"Wolverhampton City Council","http://opendatacommunities.org/id/metropolitan-district-council/wolverhampton","HOMEBASE LTD 103","17.78","Children & Family Contact Services","5211","Equipment - Purchase","26/01/2016"
"Wolverhampton City Council","http://opendatacommunities.org/id/metropolitan-district-council/wolverhampton","SAINSBURYS SACAT (2340","3.58","Mayoral Expenses","5411","Hospitality","26/01/2016"
"Wolverhampton City Council","http://opendatacommunities.org/id/metropolitan-district-council/wolverhampton","WM MORRISON 024","23.19","Ernest Bold Court","5411","Provisions (Not for resale)","26/01/2016"
"Wolverhampton City Council","http://opendatacommunities.org/id/metropolitan-district-council/wolverhampton","SCCI ALPHATRACK LT","130.00","Aldersley Leisure Village","4812","R&M - Departmental planned (external)","26/01/2016"
"Wolverhampton City Council","http://opendatacommunities.org/id/metropolitan-district-council/wolverhampton","POUNDLAND LTD 1463","4.00","Children & Young People Support Costs","5310","Equipment - Purchase","26/01/2016"
"Wolverhampton City Council","http://opendatacommunities.org/id/metropolitan-district-council/wolverhampton","PRESERVATION EQUIP","172.80","Maintenance & Technical Materials","4225","Equipment - Purchase","26/01/2016"
"Wolverhampton City Council","http://opendatacommunities.org/id/metropolitan-district-council/wolverhampton","ROYAL BK OF SCOTLAND","10.00","Assessment Team (West)","6011","Financial Assistance In Exceptional Circ","26/01/2016"
"Wolverhampton City Council","http://opendatacommunities.org/id/metropolitan-district-council/wolverhampton","SAINSBURYS (2340)","121.40","AES Staff Development","5411","Provisions (Not for resale)","26/01/2016"
"Wolverhampton City Council","http://opendatacommunities.org/id/metropolitan-district-council/wolverhampton","G & M HALE (SUNDRIES)","16.77","Discretionary Fund","5992","Materials","26/01/2016"
"Wolverhampton City Council","http://opendatacommunities.org/id/metropolitan-district-council/wolverhampton","WM MORRISONS","18.00","Nelson Mandela House","5411","Provisions (Not for resale)","26/01/2016"
"Wolverhampton City Council","http://opendatacommunities.org/id/metropolitan-district-council/wolverhampton","123-REG.CO.UK","11.98","Technical Support","4816","Computing - Purchase of Software","26/01/2016"
"Wolverhampton City Council","http://opendatacommunities.org/id/metropolitan-district-council/wolverhampton","OFFICE DEPOT","1.66","Mental Health Assessment & Care Mgmt","5111","Stationery","26/01/2016"
"Wolverhampton City Council","http://opendatacommunities.org/id/metropolitan-district-council/wolverhampton","SCREWFIX DIRECT","12.49","College of Further Education","5211","Materials","26/01/2016"
"Wolverhampton City Council","http://opendatacommunities.org/id/metropolitan-district-council/wolverhampton","ASDA HOME SHOPPING","-4.02","Upper Pendeford Farm Childrens Home","5411","Provisions (Not for resale)","26/01/2016"
"Wolverhampton City Council","http://opendatacommunities.org/id/metropolitan-district-council/wolverhampton","Amazon UK Marketplace","12.98","Global Budgets","5942","Books","26/01/2016"
"Wolverhampton City Council","http://opendatacommunities.org/id/metropolitan-district-council/wolverhampton","MARKS & SPENCER","24.85","Transformation","5411","Provisions (Not for resale)","26/01/2016"
"Wolverhampton City Council","http://opendatacommunities.org/id/metropolitan-district-council/wolverhampton","GREGGS - S1399","7.65","Transformation","5462","Catering","26/01/2016"
"Wolverhampton City Council","http://opendatacommunities.org/id/metropolitan-district-council/wolverhampton","DAYS HOTEL COVENTR","170.00","Priory Green - CIN SWU S17","7011","Accommodation Costs","26/01/2016"
"Wolverhampton City Council","http://opendatacommunities.org/id/metropolitan-district-council/wolverhampton","THE COAL AUTHORITY","69.00","HRA General","9399","Services - Professional Fees","26/01/2016"
"Wolverhampton City Council","http://opendatacommunities.org/id/metropolitan-district-council/wolverhampton","OFFICE DEPOT","0.75","Independent Living Service","5111","Stationery","26/01/2016"
"Wolverhampton City Council","http://opendatacommunities.org/id/metropolitan-district-council/wolverhampton","G & M HALE LTD","24.90","Creative Studies Delivery Area","5992","Materials","26/01/2016"
"Wolverhampton City Council","http://opendatacommunities.org/id/metropolitan-district-council/wolverhampton","THETICKETFACTORY","205.20","Midland Box Office","7922","Events","26/01/2016"
"Wolverhampton City Council","http://opendatacommunities.org/id/metropolitan-district-council/wolverhampton","HALFORDS 0775","33.35","Northicote Farm","5940","Equipment - Purchase","26/01/2016"
"Wolverhampton City Council","http://opendatacommunities.org/id/metropolitan-district-council/wolverhampton","HUGHES","416.67","LAC Transitions Team","5732","Independant Living Allowance","25/01/2016"
"Wolverhampton City Council","http://opendatacommunities.org/id/metropolitan-district-council/wolverhampton","Amazon UK Marketplace","19.86","SEN Sensory Inclusion","5942","Equipment - Purchase","25/01/2016"
"Wolverhampton City Council","http://opendatacommunities.org/id/metropolitan-district-council/wolverhampton","DERBY C CNCL TEL PAYME","-16.29","Head of Service - CINCP","9399","Services - Professional Fees","25/01/2016"
"Wolverhampton City Council","http://opendatacommunities.org/id/metropolitan-district-council/wolverhampton","WAITROSE 696","22.68","MAST 3 - Graiseley","5411","Comms - Postage","25/01/2016"
"Wolverhampton City Council","http://opendatacommunities.org/id/metropolitan-district-council/wolverhampton","SCREWFIX DIRECT","222.24","Independent Living Service","5211","Materials","25/01/2016"
"Wolverhampton City Council","http://opendatacommunities.org/id/metropolitan-district-council/wolverhampton","WM MORRISON 024","4.00","Bilston Museum","5411","Materials for resale","25/01/2016"
"Wolverhampton City Council","http://opendatacommunities.org/id/metropolitan-district-council/wolverhampton","OFFICE DEPOT","0.77","Independent Living Service","5111","Stationery","25/01/2016"
"Wolverhampton City Council","http://opendatacommunities.org/id/metropolitan-district-council/wolverhampton","Amazon UK Marketplace","5.80","Global Budgets","5942","Books","25/01/2016"
"Wolverhampton City Council","http://opendatacommunities.org/id/metropolitan-district-council/wolverhampton","PREMIER INN","138.33","Headstart","3811","Services - Supplies & Services to users","25/01/2016"
"Wolverhampton City Council","http://opendatacommunities.org/id/metropolitan-district-council/wolverhampton","J P LENNARD LTD","250.37","Central Baths","5941","Equipment - Purchase","25/01/2016"
"Wolverhampton City Council","http://opendatacommunities.org/id/metropolitan-district-council/wolverhampton","NEXT RETAIL LTD","20.00","Mayoral Expenses","5651","Clothing / Uniforms","25/01/2016"
"Wolverhampton City Council","http://opendatacommunities.org/id/metropolitan-district-council/wolverhampton","FACEBOOK VKZM68NA92","592.30","Communications & Marketing - General","7311","Marketing \ Non-staff advertising","25/01/2016"
"Wolverhampton City Council","http://opendatacommunities.org/id/metropolitan-district-council/wolverhampton","Q-SYSTEMS LIMITED","225.00","Civic Halls Non Direct Management A/C","5999","Equipment - R & M","25/01/2016"
"Wolverhampton City Council","http://opendatacommunities.org/id/metropolitan-district-council/wolverhampton","OFFICE DEPOT","112.02","Independent Living Service","5111","Stationery","25/01/2016"
"Wolverhampton City Council","http://opendatacommunities.org/id/metropolitan-district-council/wolverhampton","MARQUEE ENTEC LTD","340.00","Civic Hall Out-house Promotions","7394","Equipment - Purchase","25/01/2016"
"Wolverhampton City Council","http://opendatacommunities.org/id/metropolitan-district-council/wolverhampton","COMBINED COURT","280.00","Rents Management","9222","Services - Professional Fees","25/01/2016"
"Wolverhampton City Council","http://opendatacommunities.org/id/metropolitan-district-council/wolverhampton","J P LENNARD LTD","250.37","Central Baths","5941","Equipment - Purchase","25/01/2016"
"Wolverhampton City Council","http://opendatacommunities.org/id/metropolitan-district-council/wolverhampton","PREMIER INN","395.91","Dove - CIN SWU S17","3811","Services - Supplies & Services to users","25/01/2016"
"Wolverhampton City Council","http://opendatacommunities.org/id/metropolitan-district-council/wolverhampton","POST OFFICE COUNTER","10.82","Bilston Museum","9402","Comms - Postage","25/01/2016"
"Wolverhampton City Council","http://opendatacommunities.org/id/metropolitan-district-council/wolverhampton","OFFICE DEPOT","54.19","HR Advice","5111","Stationery","25/01/2016"
"Wolverhampton City Council","http://opendatacommunities.org/id/metropolitan-district-council/wolverhampton","OFFICE DEPOT","123.08","Independent Living Service","5111","Stationery","25/01/2016"
"Wolverhampton City Council","http://opendatacommunities.org/id/metropolitan-district-council/wolverhampton","REDWINGS LODGE","91.54","Avenues - CIN SWU S17","7011","Services - Supplies & Services to users","25/01/2016"
"Wolverhampton City Council","http://opendatacommunities.org/id/metropolitan-district-council/wolverhampton","YELLOW SHIELD LTD","100.00","Central Baths","7399","Equipment - Purchase","25/01/2016"
"Wolverhampton City Council","http://opendatacommunities.org/id/metropolitan-district-council/wolverhampton","TERMINUS SERVICE STATI","8.33","College of Further Education","5541","Petrol","25/01/2016"
"Wolverhampton City Council","http://opendatacommunities.org/id/metropolitan-district-council/wolverhampton","Amazon UK Marketplace","99.00","Customer Services","5942","Books","25/01/2016"
"Wolverhampton City Council","http://opendatacommunities.org/id/metropolitan-district-council/wolverhampton","NATIONAL EXPRESS LIMIT","45.60","CIN - Bilston CC2 - Area 2","4131","Public Transport","25/01/2016"
"Wolverhampton City Council","http://opendatacommunities.org/id/metropolitan-district-council/wolverhampton","OFFICE DEPOT","154.19","Headstart","5111","Equipment - Purchase","25/01/2016"
"Wolverhampton City Council","http://opendatacommunities.org/id/metropolitan-district-council/wolverhampton","STATIONERY OFFICE BOOK","65.75","Safeguarding Admin Resource","5942","Books","25/01/2016"
"Wolverhampton City Council","http://opendatacommunities.org/id/metropolitan-district-council/wolverhampton","B&M RETAIL","92.36","LAC Transitions Team","5310","Independant Living Allowance","25/01/2016"
"Wolverhampton City Council","http://opendatacommunities.org/id/metropolitan-district-council/wolverhampton","POST OFFICE COUNTER","81.60","CIN - Bilston CC1 - Area 2","9402","Comms - Postage","25/01/2016"
"Wolverhampton City Council","http://opendatacommunities.org/id/metropolitan-district-council/wolverhampton","MAILCHIMP","35.56","City Direct","7399","Equipment - Purchase","25/01/2016"
"Wolverhampton City Council","http://opendatacommunities.org/id/metropolitan-district-council/wolverhampton","ASDA HOME SHOPPING","-1.60","Ernest Bold Court","5411","Provisions (Not for resale)","25/01/2016"
"Wolverhampton City Council","http://opendatacommunities.org/id/metropolitan-district-council/wolverhampton","TOOLSTATION LTD","31.01","Education Catering - General Overheads","5251","Equipment - Purchase","25/01/2016"
"Wolverhampton City Council","http://opendatacommunities.org/id/metropolitan-district-council/wolverhampton","POST OFFICE COUNTER","6.52","Legal Services","9402","Comms - Postage","25/01/2016"
"Wolverhampton City Council","http://opendatacommunities.org/id/metropolitan-district-council/wolverhampton","TRAVEL WEST MIDLAN","210.00","Bilston 1 - CIN SWU S17","4131","Public Transport","25/01/2016"
"Wolverhampton City Council","http://opendatacommunities.org/id/metropolitan-district-council/wolverhampton","WEST COAST TRAINS","8.60","Black Art Movement","4112","Public Transport","25/01/2016"
"Wolverhampton City Council","http://opendatacommunities.org/id/metropolitan-district-council/wolverhampton","ASDA HOME SHOPPING","0.64","Ernest Bold Court","5411","Provisions (Not for resale)","25/01/2016"
"Wolverhampton City Council","http://opendatacommunities.org/id/metropolitan-district-council/wolverhampton","CURRYS S/S","62.49","Head of Service - LAC","5732","Equipment - Purchase","25/01/2016"
"Wolverhampton City Council","http://opendatacommunities.org/id/metropolitan-district-council/wolverhampton","WWW.VIKING-DIRECT.CO.U","51.72","Legal Services","5111","Stationery","25/01/2016"
"Wolverhampton City Council","http://opendatacommunities.org/id/metropolitan-district-council/wolverhampton","ASDA HOME SHOPPING","67.81","Ernest Bold Court","5411","Provisions (Not for resale)","25/01/2016"
"Wolverhampton City Council","http://opendatacommunities.org/id/metropolitan-district-council/wolverhampton","NO 1 PIZZA WOLVERH","8.99","Youth Service - General","5814","Educ Trips, Holidays, Outings, Activity","25/01/2016"
"Wolverhampton City Council","http://opendatacommunities.org/id/metropolitan-district-council/wolverhampton","Amazon UK Marketplace","15.93","MAST 2 - Bilston","5942","Stationery","25/01/2016"
"Wolverhampton City Council","http://opendatacommunities.org/id/metropolitan-district-council/wolverhampton","FACEBOOK WKZM68NA92","7.73","Communications & Marketing - General","7311","Marketing \ Non-staff advertising","25/01/2016"
"Wolverhampton City Council","http://opendatacommunities.org/id/metropolitan-district-council/wolverhampton","WWW.VIKING-DIRECT.CO.U","610.10","Legal Services","5111","Stationery","25/01/2016"
"Wolverhampton City Council","http://opendatacommunities.org/id/metropolitan-district-council/wolverhampton","WM MORRISON 024","28.08","CIN - Bilston CC2 - Area 2","5411","Stationery","25/01/2016"
"Wolverhampton City Council","http://opendatacommunities.org/id/metropolitan-district-council/wolverhampton","Amazon UK Marketplace","27.54","Global Budgets","5942","Books","25/01/2016"
"Wolverhampton City Council","http://opendatacommunities.org/id/metropolitan-district-council/wolverhampton","PURE360","448.00","Civic Hall Administration Overhead Acct","7372","Marketing \ Non-staff advertising","25/01/2016"
"Wolverhampton City Council","http://opendatacommunities.org/id/metropolitan-district-council/wolverhampton","WWW.LEWIS-PLAST.CO.UK","73.14","Traffic Signals","5047","Equipment - Purchase","25/01/2016"
"Wolverhampton City Council","http://opendatacommunities.org/id/metropolitan-district-council/wolverhampton","Amazon EU","15.49","Global Budgets","5969","Books","25/01/2016"
"Wolverhampton City Council","http://opendatacommunities.org/id/metropolitan-district-council/wolverhampton","CUMMINGS BROTHERS LOCK","20.00","Caretakers Community Centre","7399","R&M - Departmental planned (external)","25/01/2016"
"Wolverhampton City Council","http://opendatacommunities.org/id/metropolitan-district-council/wolverhampton","WOLVERHAMPTON CC","10.00","Headstart","7523","Car Allowances","25/01/2016"
"Wolverhampton City Council","http://opendatacommunities.org/id/metropolitan-district-council/wolverhampton","TRAINLINE","185.13","Legal Services","4112","Public Transport","25/01/2016"
"Wolverhampton City Council","http://opendatacommunities.org/id/metropolitan-district-council/wolverhampton","CUMMINGS BROTHERS LOCK","5.83","Caretakers Community Centre","7399","R&M - Departmental planned (external)","25/01/2016"
"Wolverhampton City Council","http://opendatacommunities.org/id/metropolitan-district-council/wolverhampton","TRAINLINE","121.89","LAC Admin Team","4112","Client Allowances","25/01/2016"
"Wolverhampton City Council","http://opendatacommunities.org/id/metropolitan-district-council/wolverhampton","WM MORRISON 024","11.60","Ernest Bold Court","5411","Provisions (Not for resale)","22/01/2016"
"Wolverhampton City Council","http://opendatacommunities.org/id/metropolitan-district-council/wolverhampton","OFFICE DEPOT","67.88","Benefits","5111","Stationery","22/01/2016"
"Wolverhampton City Council","http://opendatacommunities.org/id/metropolitan-district-council/wolverhampton","OFFICE DEPOT","116.47","MAST 3 - Graiseley","5111","Stationery","22/01/2016"
"Wolverhampton City Council","http://opendatacommunities.org/id/metropolitan-district-council/wolverhampton","OFFICE DEPOT","136.63","Children's Village Children Centre","5111","Stationery","22/01/2016"
"Wolverhampton City Council","http://opendatacommunities.org/id/metropolitan-district-council/wolverhampton","HMCOURTS-SERVICE.G","195.00","Revenues","9222","Services - Fees and Charges","22/01/2016"
"Wolverhampton City Council","http://opendatacommunities.org/id/metropolitan-district-council/wolverhampton","Amazon UK Marketplace","1.89","Mental Health Assessment & Care Mgmt","5942","Books","22/01/2016"
"Wolverhampton City Council","http://opendatacommunities.org/id/metropolitan-district-council/wolverhampton","CUMMINGS BROTHERS LOCK","15.83","Duke Street Bungalows","7399","Equipment - Purchase","22/01/2016"
"Wolverhampton City Council","http://opendatacommunities.org/id/metropolitan-district-council/wolverhampton","Flybe2674 2674068574518","178.16","Headstart","4511","Public Transport","22/01/2016"
"Wolverhampton City Council","http://opendatacommunities.org/id/metropolitan-district-council/wolverhampton","PREMIER INN","59.17","Agresso System Support","3811","Subsistence","22/01/2016"
"Wolverhampton City Council","http://opendatacommunities.org/id/metropolitan-district-council/wolverhampton","ARGOS RETAIL GROUP","79.99","LAC Admin Team","5310","Client Allowances","22/01/2016"
"Wolverhampton City Council","http://opendatacommunities.org/id/metropolitan-district-council/wolverhampton","Flybe2674 2674068574717","83.99","Headstart","4511","Public Transport","22/01/2016"
"Wolverhampton City Council","http://opendatacommunities.org/id/metropolitan-district-council/wolverhampton","OFFICE DEPOT","11.64","Benefits","5111","Stationery","22/01/2016"
"Wolverhampton City Council","http://opendatacommunities.org/id/metropolitan-district-council/wolverhampton","CARE SHOP","74.90","Ernest Bold Court","5999","Cleaning Supplies and Materials","22/01/2016"
"Wolverhampton City Council","http://opendatacommunities.org/id/metropolitan-district-council/wolverhampton","MARKS & SPENCER","32.92","Mayoral Expenses","5411","Clothing / Uniforms","22/01/2016"
"Wolverhampton City Council","http://opendatacommunities.org/id/metropolitan-district-council/wolverhampton","E01350800000000","30.00","Community Enablement","6011","Provisions (Not for resale)","22/01/2016"
"Wolverhampton City Council","http://opendatacommunities.org/id/metropolitan-district-council/wolverhampton","Amazon UK Marketplace","74.52","SEN Sensory Inclusion","5942","Equipment - Purchase","22/01/2016"
"Wolverhampton City Council","http://opendatacommunities.org/id/metropolitan-district-council/wolverhampton","Flybe2674 2674068574632","83.99","Headstart","4511","Public Transport","22/01/2016"
"Wolverhampton City Council","http://opendatacommunities.org/id/metropolitan-district-council/wolverhampton","NATIONAL EXPRESS LIMIT","50.05","Whitmore Reans - CIN SWU S17","4131","Public Transport","22/01/2016"
"Wolverhampton City Council","http://opendatacommunities.org/id/metropolitan-district-council/wolverhampton","FLYBE.COM 26740685747840","64.99","Headstart","4511","Public Transport","22/01/2016"
"Wolverhampton City Council","http://opendatacommunities.org/id/metropolitan-district-council/wolverhampton","HMCOURTS-SERVICE.G","7944.00","Revenues","9222","Services - Fees and Charges","22/01/2016"
"Wolverhampton City Council","http://opendatacommunities.org/id/metropolitan-district-council/wolverhampton","TRAINLINE","-180.40","Delivery & OCE Development","4112","Public Transport","22/01/2016"
"Wolverhampton City Council","http://opendatacommunities.org/id/metropolitan-district-council/wolverhampton","OFFICE DEPOT","50.83","Archives","5111","Stationery","21/01/2016"
"Wolverhampton City Council","http://opendatacommunities.org/id/metropolitan-district-council/wolverhampton","Amazon UK Marketplace","17.63","Central Baths","5942","Books","21/01/2016"
"Wolverhampton City Council","http://opendatacommunities.org/id/metropolitan-district-council/wolverhampton","Virgintrains.co.uk","25.50","Looked After Team 1","4112","Public Transport","21/01/2016"
"Wolverhampton City Council","http://opendatacommunities.org/id/metropolitan-district-council/wolverhampton","SCREWFIX DIRECT","27.88","Caretakers Community Centre","5211","R&M - Departmental planned (external)","21/01/2016"
"Wolverhampton City Council","http://opendatacommunities.org/id/metropolitan-district-council/wolverhampton","iZ  direct furnitu","407.50","LAC Transitions Team","5999","Independant Living Allowance","21/01/2016"
"Wolverhampton City Council","http://opendatacommunities.org/id/metropolitan-district-council/wolverhampton","ROYAL MAIL GROUP","260.00","Parking Enforcement","9402","Comms - Postage","21/01/2016"
"Wolverhampton City Council","http://opendatacommunities.org/id/metropolitan-district-council/wolverhampton","A F BLAKEMORE & SON LT","112.81","Nelson Mandela House","5411","Provisions (Not for resale)","21/01/2016"
"Wolverhampton City Council","http://opendatacommunities.org/id/metropolitan-district-council/wolverhampton","WWW.BIRMINGHAM.GOV.UK","22.00","Looked After Team 1","8299","Services - Fees and Charges","21/01/2016"
"Wolverhampton City Council","http://opendatacommunities.org/id/metropolitan-district-council/wolverhampton","CT WOLVERHAMPTON","75.00","MAST 2 - Bilston","8398","Grant Payments","21/01/2016"
"Wolverhampton City Council","http://opendatacommunities.org/id/metropolitan-district-council/wolverhampton","TRAINLINE","116.38","Legal Services","4112","Public Transport","21/01/2016"
"Wolverhampton City Council","http://opendatacommunities.org/id/metropolitan-district-council/wolverhampton","PREMIER INN","55.99","Fostering Team & Allowances","3811","Accommodation Costs","21/01/2016"
"Wolverhampton City Council","http://opendatacommunities.org/id/metropolitan-district-council/wolverhampton","TESCO STORES 5194","111.26","Towers Outdoor Education Centre","5411","Provisions (Not for resale)","21/01/2016"
"Wolverhampton City Council","http://opendatacommunities.org/id/metropolitan-district-council/wolverhampton","PARTRIDGE & PRINT","95.50","Fostering Team & Allowances","8299","Books","21/01/2016"
"Wolverhampton City Council","http://opendatacommunities.org/id/metropolitan-district-council/wolverhampton","Amazon EU","4.16","Mental Health Assessment & Care Mgmt","5969","Equipment - Purchase","21/01/2016"
"Wolverhampton City Council","http://opendatacommunities.org/id/metropolitan-district-council/wolverhampton","OFFICE DEPOT","65.12","Mental Health Assessment & Care Mgmt","5111","Stationery","21/01/2016"
"Wolverhampton City Council","http://opendatacommunities.org/id/metropolitan-district-council/wolverhampton","Amazon EU","23.27","MAST 5 - Valley Park","5969","Equipment - Purchase","21/01/2016"
"Wolverhampton City Council","http://opendatacommunities.org/id/metropolitan-district-council/wolverhampton","AegeanAir","397.62","Whitmore Reans - CIN SWU S17","4511","Public Transport","21/01/2016"
"Wolverhampton City Council","http://opendatacommunities.org/id/metropolitan-district-council/wolverhampton","HOME BARGAINS","77.94","MAST 8 - Wednesfield","5251","Equipment - Purchase","21/01/2016"
"Wolverhampton City Council","http://opendatacommunities.org/id/metropolitan-district-council/wolverhampton","WWW.SEVERNTRENTSEARCHE","165.00","HRA General","4900","Services - Professional Fees","21/01/2016"
"Wolverhampton City Council","http://opendatacommunities.org/id/metropolitan-district-council/wolverhampton","TRAINLINE","9.84","Looked After Team 1","4112","Public Transport","21/01/2016"
"Wolverhampton City Council","http://opendatacommunities.org/id/metropolitan-district-council/wolverhampton","WEST COAST TRAINS","105.80","Graiseley - CIN SWU S17","4112","Public Transport","21/01/2016"
"Wolverhampton City Council","http://opendatacommunities.org/id/metropolitan-district-council/wolverhampton","ONE STOP 1009","4.99","MAST 1 - Deansfield","5411","Provisions (Not for resale)","21/01/2016"
"Wolverhampton City Council","http://opendatacommunities.org/id/metropolitan-district-council/wolverhampton","SVM EUROPE LTD","206.28","Information & Intelligence","8999","Materials","21/01/2016"
"Wolverhampton City Council","http://opendatacommunities.org/id/metropolitan-district-council/wolverhampton","ARGOS RETAIL GROUP","219.98","MAST 8 - Wednesfield","5310","Equipment - Purchase","21/01/2016"
"Wolverhampton City Council","http://opendatacommunities.org/id/metropolitan-district-council/wolverhampton","iZ  direct furnitu","250.00","LAC Transitions Team","5999","Independant Living Allowance","21/01/2016"
"Wolverhampton City Council","http://opendatacommunities.org/id/metropolitan-district-council/wolverhampton","Amazon UK Marketplace","15.73","SEN Sensory Inclusion","5942","Equipment - Purchase","21/01/2016"
"Wolverhampton City Council","http://opendatacommunities.org/id/metropolitan-district-council/wolverhampton","FTPE WEBTIS 1","102.20","Macmillan Welfare Rights","4112","Public Transport","21/01/2016"
"Wolverhampton City Council","http://opendatacommunities.org/id/metropolitan-district-council/wolverhampton","Amazon UK Marketplace","28.28","SEN Sensory Inclusion","5942","Equipment - Purchase","21/01/2016"
"Wolverhampton City Council","http://opendatacommunities.org/id/metropolitan-district-council/wolverhampton","Virgintrains.co.uk","43.00","Looked After Team 1","4112","Public Transport","21/01/2016"
"Wolverhampton City Council","http://opendatacommunities.org/id/metropolitan-district-council/wolverhampton","POST OFFICE COUNTER","234.00","Looked After Team 2","9402","Comms - Postage","21/01/2016"
"Wolverhampton City Council","http://opendatacommunities.org/id/metropolitan-district-council/wolverhampton","BOARDSDIRECT.CO.UK","40.68","Central Baths","5111","Stationery","20/01/2016"
"Wolverhampton City Council","http://opendatacommunities.org/id/metropolitan-district-council/wolverhampton","POST OFFICE COUNTER","31.50","Carers Support","9402","Comms - Postage","20/01/2016"
"Wolverhampton City Council","http://opendatacommunities.org/id/metropolitan-district-council/wolverhampton","TRAINLINE","17.90","Adoption and Residence Team & Allowances","4112","Public Transport","20/01/2016"
"Wolverhampton City Council","http://opendatacommunities.org/id/metropolitan-district-council/wolverhampton","TRAINLINE","195.74","Delivery & OCE Development","4112","Public Transport","20/01/2016"
"Wolverhampton City Council","http://opendatacommunities.org/id/metropolitan-district-council/wolverhampton","FACEBOOK 6HLM68NA92","591.95","Communications & Marketing - General","7311","Marketing \ Non-staff advertising","20/01/2016"
"Wolverhampton City Council","http://opendatacommunities.org/id/metropolitan-district-council/wolverhampton","OFFICE DEPOT","59.52","Fostering Team","5111","Stationery","20/01/2016"
"Wolverhampton City Council","http://opendatacommunities.org/id/metropolitan-district-council/wolverhampton","CURRYS ONLINE","16.66","Aldersley Leisure Village","5732","Equipment - Purchase","20/01/2016"
"Wolverhampton City Council","http://opendatacommunities.org/id/metropolitan-district-council/wolverhampton","OFFICE DEPOT","3.65","City Direct","5111","Stationery","20/01/2016"
"Wolverhampton City Council","http://opendatacommunities.org/id/metropolitan-district-council/wolverhampton","SAIN ST MARKS","250.00","Childrens with Disabilities Team","6011","Financial Assistance In Exceptional Circ","20/01/2016"
"Wolverhampton City Council","http://opendatacommunities.org/id/metropolitan-district-council/wolverhampton","Virgintrains.co.uk","107.00","SWP - Infrastructure","4112","Public Transport","20/01/2016"
"Wolverhampton City Council","http://opendatacommunities.org/id/metropolitan-district-council/wolverhampton","OFFICE DEPOT","36.40","Youth Offending Team","5111","Stationery","20/01/2016"
"Wolverhampton City Council","http://opendatacommunities.org/id/metropolitan-district-council/wolverhampton","THORNES THE SOLICITORS","386.18","Head of Service - CINCP","8111","Services - Professional Fees","20/01/2016"
"Wolverhampton City Council","http://opendatacommunities.org/id/metropolitan-district-council/wolverhampton","ARGOS RETAIL GROUP","83.32","LAC Transitions Team","5310","Equipment - Purchase","20/01/2016"
"Wolverhampton City Council","http://opendatacommunities.org/id/metropolitan-district-council/wolverhampton","POST OFFICE COUNTER","67.38","Valley Park - CIN SWU S17","9402","Comms - Postage","20/01/2016"
"Wolverhampton City Council","http://opendatacommunities.org/id/metropolitan-district-council/wolverhampton","POST OFFICE COUNTER","31.50","CIN - Alfred Squire Square MAST - Area 8","9402","Comms - Postage","20/01/2016"
"Wolverhampton City Council","http://opendatacommunities.org/id/metropolitan-district-council/wolverhampton","WEST COAST TRAINS","45.80","LAC Transitions Team","4112","Client Allowances","20/01/2016"
"Wolverhampton City Council","http://opendatacommunities.org/id/metropolitan-district-council/wolverhampton","FACEBOOK 7HLM68NA92","8.35","Communications & Marketing - General","7311","Marketing \ Non-staff advertising","20/01/2016"
"Wolverhampton City Council","http://opendatacommunities.org/id/metropolitan-district-council/wolverhampton","ASDA SUPERSTORE","93.00","Graiseley - CIN SWU S17","5411","Provisions (Not for resale)","20/01/2016"
"Wolverhampton City Council","http://opendatacommunities.org/id/metropolitan-district-council/wolverhampton","NATWEST BANK","250.00","Valley Park - CIN SWU S17","6011","Financial Assistance In Exceptional Circ","20/01/2016"
"Wolverhampton City Council","http://opendatacommunities.org/id/metropolitan-district-council/wolverhampton","POST OFFICE COUNTER","126.00","LAC Education Team (LACE)","9402","Comms - Postage","20/01/2016"
"Wolverhampton City Council","http://opendatacommunities.org/id/metropolitan-district-council/wolverhampton","ASDA HOME SHOPPING","-0.75","Ernest Bold Court","5411","Provisions (Not for resale)","20/01/2016"
"Wolverhampton City Council","http://opendatacommunities.org/id/metropolitan-district-council/wolverhampton","THE COAL AUTHORITY","29.00","HRA General","9399","Services - Professional Fees","20/01/2016"
"Wolverhampton City Council","http://opendatacommunities.org/id/metropolitan-district-council/wolverhampton","ASDA HOME SHOPPING","85.49","Ernest Bold Court","5411","Provisions (Not for resale)","20/01/2016"
"Wolverhampton City Council","http://opendatacommunities.org/id/metropolitan-district-council/wolverhampton","SAINSBURYS (2340)","5.00","Windmill Lane - Respite Home","5411","Provisions (Not for resale)","20/01/2016"
"Wolverhampton City Council","http://opendatacommunities.org/id/metropolitan-district-council/wolverhampton","PRINTCARRIER.COM","28.67","The Little Civic","2741","Publications","20/01/2016"
"Wolverhampton City Council","http://opendatacommunities.org/id/metropolitan-district-council/wolverhampton","TESCO DELIVERY SAVER1","2.50","Towers Outdoor Education Centre","5411","Provisions (Not for resale)","20/01/2016"
"Wolverhampton City Council","http://opendatacommunities.org/id/metropolitan-district-council/wolverhampton","Virgintrains.co.uk","75.00","Information & Intelligence","4112","Public Transport","20/01/2016"
"Wolverhampton City Council","http://opendatacommunities.org/id/metropolitan-district-council/wolverhampton","AUTOTIME SOLUTIONS","53.60","Arbor Scheme","5943","Stationery","20/01/2016"
"Wolverhampton City Council","http://opendatacommunities.org/id/metropolitan-district-council/wolverhampton","WALSALL COUNCIL","9.00","CIN - Bilston CC2 - Area 2","9399","TPP - Payments to Local Authorities","20/01/2016"
"Wolverhampton City Council","http://opendatacommunities.org/id/metropolitan-district-council/wolverhampton","NATWEST BANK","250.00","Valley Park - CIN SWU S17","6011","Financial Assistance In Exceptional Circ","20/01/2016"
"Wolverhampton City Council","http://opendatacommunities.org/id/metropolitan-district-council/wolverhampton","DIRECT CARPETS","233.33","LAC Transitions Team","5713","Independant Living Allowance","20/01/2016"
"Wolverhampton City Council","http://opendatacommunities.org/id/metropolitan-district-council/wolverhampton","PRINTCARRIER.COM","35.33","The Little Civic","2741","Publications","20/01/2016"
"Wolverhampton City Council","http://opendatacommunities.org/id/metropolitan-district-council/wolverhampton","TFM FARM & COUNTRY SUP","129.10","Northicote Farm","5399","Equipment - Purchase","20/01/2016"
"Wolverhampton City Council","http://opendatacommunities.org/id/metropolitan-district-council/wolverhampton","THE POST OFFICE","117.00","MAST 7 - Berrybrook","9402","Comms - Postage","20/01/2016"
"Wolverhampton City Council","http://opendatacommunities.org/id/metropolitan-district-council/wolverhampton","TFM FARM & COUNTRY SUP","235.00","Northicote Farm","5399","Equipment - Purchase","20/01/2016"
"Wolverhampton City Council","http://opendatacommunities.org/id/metropolitan-district-council/wolverhampton","COMBINED COURT","60.00","HRA General","9222","Services - Professional Fees","20/01/2016"
"Wolverhampton City Council","http://opendatacommunities.org/id/metropolitan-district-council/wolverhampton","Virgintrains.co.uk","158.00","Technical Support","4112","Conference Expenses","19/01/2016"
"Wolverhampton City Council","http://opendatacommunities.org/id/metropolitan-district-council/wolverhampton","Amazon UK Marketplace","80.29","Aldersley Leisure Village","5942","Equipment - Purchase","19/01/2016"
"Wolverhampton City Council","http://opendatacommunities.org/id/metropolitan-district-council/wolverhampton","G & M HALE LTD","130.35","College of Further Education","5992","Equipment - Purchase","19/01/2016"
"Wolverhampton City Council","http://opendatacommunities.org/id/metropolitan-district-council/wolverhampton","ROYAL CARPETS","210.00","Graiseley - CIN SWU S17","5713","Equipment - Purchase","19/01/2016"
"Wolverhampton City Council","http://opendatacommunities.org/id/metropolitan-district-council/wolverhampton","ASDA HOME SHOPPING","188.90","Upper Pendeford Farm Childrens Home","5411","Provisions (Not for resale)","19/01/2016"
"Wolverhampton City Council","http://opendatacommunities.org/id/metropolitan-district-council/wolverhampton","TRAINLINE","32.39","Adoption and Residence Team & Allowances","4112","Public Transport","19/01/2016"
"Wolverhampton City Council","http://opendatacommunities.org/id/metropolitan-district-council/wolverhampton","CUMMINGS BROTHERS LOCK","4.17","Caretakers Community Centre","7399","R&M - Departmental planned (external)","19/01/2016"
"Wolverhampton City Council","http://opendatacommunities.org/id/metropolitan-district-council/wolverhampton","PREMIER INN","-60.50","Adoption and Residence Team & Allowances","3811","Hospitality","19/01/2016"
"Wolverhampton City Council","http://opendatacommunities.org/id/metropolitan-district-council/wolverhampton","WWW.POWERHOUSEDIRECT.C","78.64","Aldersley Leisure Village","5199","Equipment - Purchase","19/01/2016"
"Wolverhampton City Council","http://opendatacommunities.org/id/metropolitan-district-council/wolverhampton","BARNARDOS","1.66","Education And Access","5947","Equipment - Purchase","19/01/2016"
"Wolverhampton City Council","http://opendatacommunities.org/id/metropolitan-district-council/wolverhampton","WISEPOPS.COM","35.23","City Direct","7372","Computing - Purchase of Software","19/01/2016"
"Wolverhampton City Council","http://opendatacommunities.org/id/metropolitan-district-council/wolverhampton","WWW.VIKING-DIRECT.CO.U","179.00","Legal Services","5111","Stationery","19/01/2016"
"Wolverhampton City Council","http://opendatacommunities.org/id/metropolitan-district-council/wolverhampton","CUMMINGS BROTHERS LOCK","10.00","Caretakers Community Centre","7399","R&M - Departmental planned (external)","19/01/2016"
"Wolverhampton City Council","http://opendatacommunities.org/id/metropolitan-district-council/wolverhampton","Amazon EU","73.84","Aldersley Leisure Village","5969","Equipment - Purchase","19/01/2016"
"Wolverhampton City Council","http://opendatacommunities.org/id/metropolitan-district-council/wolverhampton","ASDA HOME SHOPPING","-3.52","Upper Pendeford Farm Childrens Home","5411","Provisions (Not for resale)","19/01/2016"
"Wolverhampton City Council","http://opendatacommunities.org/id/metropolitan-district-council/wolverhampton","TRAINLINE","32.39","Adoption and Residence Team & Allowances","4112","Public Transport","19/01/2016"
"Wolverhampton City Council","http://opendatacommunities.org/id/metropolitan-district-council/wolverhampton","WWW.VIKING-DIRECT.CO.U","59.60","Legal Services","5111","Stationery","19/01/2016"
"Wolverhampton City Council","http://opendatacommunities.org/id/metropolitan-district-council/wolverhampton","CARVER/WOLVERHAMPTON/L","37.36","Wholesale Market Facilities Management","5211","Cleaning Supplies and Materials","19/01/2016"
"Wolverhampton City Council","http://opendatacommunities.org/id/metropolitan-district-council/wolverhampton","OFFICE DEPOT","0.91","SEN Sensory Inclusion","5111","Stationery","19/01/2016"
"Wolverhampton City Council","http://opendatacommunities.org/id/metropolitan-district-council/wolverhampton","B & Q","4.58","Caretakers Community Centre","5211","R&M - Departmental planned (external)","19/01/2016"
"Wolverhampton City Council","http://opendatacommunities.org/id/metropolitan-district-council/wolverhampton","TESCO STORE 3414","2.00","Mayoral Expenses","5411","Hospitality","19/01/2016"
"Wolverhampton City Council","http://opendatacommunities.org/id/metropolitan-district-council/wolverhampton","IFOR WILLIAMS TRAILERS","1387.50","Towers Outdoor Education Centre","5599","Equipment - Purchase","19/01/2016"
"Wolverhampton City Council","http://opendatacommunities.org/id/metropolitan-district-council/wolverhampton","Cross Country","30.30","Health Protection & NHS Facing","4112","Public Transport","19/01/2016"
"Wolverhampton City Council","http://opendatacommunities.org/id/metropolitan-district-council/wolverhampton","E01492200000000","40.00","Assessment Team (West)","6011","Financial Assistance In Exceptional Circ","19/01/2016"
"Wolverhampton City Council","http://opendatacommunities.org/id/metropolitan-district-council/wolverhampton","TRAINLINE","322.52","Adoption and Residence Team & Allowances","4112","Public Transport","19/01/2016"
"Wolverhampton City Council","http://opendatacommunities.org/id/metropolitan-district-council/wolverhampton","ALDI","13.52","MAST 8 - Wednesfield","5411","Provisions (Not for resale)","19/01/2016"
"Wolverhampton City Council","http://opendatacommunities.org/id/metropolitan-district-council/wolverhampton","BRITANNIA","34.00","Emergency Duty Team","7011","Services - Supplies & Services to users","19/01/2016"
"Wolverhampton City Council","http://opendatacommunities.org/id/metropolitan-district-council/wolverhampton","TRAINLINE","-31.00","Adoption and Residence Team & Allowances","4112","Public Transport","19/01/2016"
"Wolverhampton City Council","http://opendatacommunities.org/id/metropolitan-district-council/wolverhampton","ACTION ON HEARING LOSS","26.61","College of Further Education","5732","Computing - Purchase of Hardware","19/01/2016"
"Wolverhampton City Council","http://opendatacommunities.org/id/metropolitan-district-council/wolverhampton","G & M HALE (SUNDRIES)","25.20","Discretionary Fund","5992","Materials","19/01/2016"
"Wolverhampton City Council","http://opendatacommunities.org/id/metropolitan-district-council/wolverhampton","WWW.GADGETS-GALORE.CO.","588.05","LAC Education Team (LACE)","4812","Events","19/01/2016"
"Wolverhampton City Council","http://opendatacommunities.org/id/metropolitan-district-council/wolverhampton","TESCO STORES 5403","2.00","Swan Bank","5411","Provisions (Not for resale)","18/01/2016"
"Wolverhampton City Council","http://opendatacommunities.org/id/metropolitan-district-council/wolverhampton","ARCO LTD","103.15","Technician","5137","Equipment - Purchase","18/01/2016"
"Wolverhampton City Council","http://opendatacommunities.org/id/metropolitan-district-council/wolverhampton","CELLMARK","-180.00","Bilston 1 - CIN SWU S17","8099","Services - Professional Fees","18/01/2016"
"Wolverhampton City Council","http://opendatacommunities.org/id/metropolitan-district-council/wolverhampton","WWW.PRIMROSE-LONDON.CO","754.15","Play General","5261","Equipment - Purchase","18/01/2016"
"Wolverhampton City Council","http://opendatacommunities.org/id/metropolitan-district-council/wolverhampton","GENERAL OFFICE","23.50","Head of Service - CINCP","8062","Services - Professional Fees","18/01/2016"
"Wolverhampton City Council","http://opendatacommunities.org/id/metropolitan-district-council/wolverhampton","Virgintrains.co.uk","182.00","Fostering Team & Allowances","4112","Public Transport","18/01/2016"
"Wolverhampton City Council","http://opendatacommunities.org/id/metropolitan-district-council/wolverhampton","PREMIER INN","154.96","Adoption and Residence Team & Allowances","3811","Services - Supplies & Services to users","18/01/2016"
"Wolverhampton City Council","http://opendatacommunities.org/id/metropolitan-district-council/wolverhampton","BARCLAYS BANK PLC","240.00","Dove - CIN SWU S17","6011","Financial Assistance In Exceptional Circ","18/01/2016"
"Wolverhampton City Council","http://opendatacommunities.org/id/metropolitan-district-council/wolverhampton","ARGOS RETAIL GROUP","49.98","LAC Admin Team","5310","Client Allowances","18/01/2016"
"Wolverhampton City Council","http://opendatacommunities.org/id/metropolitan-district-council/wolverhampton","Amazon EU","14.49","Parent / Partnership Service","5969","Equipment - Purchase","18/01/2016"
"Wolverhampton City Council","http://opendatacommunities.org/id/metropolitan-district-council/wolverhampton","WEST COAST TRAINS","7.60","Economic Development","4112","Public Transport","18/01/2016"
"Wolverhampton City Council","http://opendatacommunities.org/id/metropolitan-district-council/wolverhampton","REDWINGS LODGE","-84.90","Adoption and Residence Team & Allowances","7011","Accommodation Costs","18/01/2016"
"Wolverhampton City Council","http://opendatacommunities.org/id/metropolitan-district-council/wolverhampton","REDWINGS LODGE","15.30","Adoption and Residence Team & Allowances","7011","Accommodation Costs","18/01/2016"
"Wolverhampton City Council","http://opendatacommunities.org/id/metropolitan-district-council/wolverhampton","Amazon EU","14.49","Parent / Partnership Service","5969","Equipment - Purchase","18/01/2016"
"Wolverhampton City Council","http://opendatacommunities.org/id/metropolitan-district-council/wolverhampton","HMCOURTS-SERVICE.G","20.00","HRA General","9222","Services - Professional Fees","18/01/2016"
"Wolverhampton City Council","http://opendatacommunities.org/id/metropolitan-district-council/wolverhampton","Amazon EU","9.07","LAC Education Team (LACE)","5969","Equipment - Purchase","18/01/2016"
"Wolverhampton City Council","http://opendatacommunities.org/id/metropolitan-district-council/wolverhampton","ITUNES.COM/BILL","0.79","Civic Halls Non Direct Management A/C","5735","Computing - Purchase of Software","18/01/2016"
"Wolverhampton City Council","http://opendatacommunities.org/id/metropolitan-district-council/wolverhampton","WORCESTERSHIRE COU","11.00","Looked After Team 1","9399","Services - Fees and Charges","18/01/2016"
"Wolverhampton City Council","http://opendatacommunities.org/id/metropolitan-district-council/wolverhampton","JACKSONS FENCING","261.40","Play General","1799","Equipment - Purchase","18/01/2016"
"Wolverhampton City Council","http://opendatacommunities.org/id/metropolitan-district-council/wolverhampton","BLOOMS MENSWEAR","164.97","Mayoral Expenses","5611","Clothing / Uniforms","18/01/2016"
"Wolverhampton City Council","http://opendatacommunities.org/id/metropolitan-district-council/wolverhampton","Amazon EU","14.49","Parent / Partnership Service","5969","Equipment - Purchase","18/01/2016"
"Wolverhampton City Council","http://opendatacommunities.org/id/metropolitan-district-council/wolverhampton","PREMIER INN","107.49","Fostering Team & Allowances","3811","Accommodation Costs","18/01/2016"
"Wolverhampton City Council","http://opendatacommunities.org/id/metropolitan-district-council/wolverhampton","Amazon UK Marketplace","27.50","Civic Halls Non Direct Management A/C","5942","Stationery","18/01/2016"
"Wolverhampton City Council","http://opendatacommunities.org/id/metropolitan-district-council/wolverhampton","WWW.PMGLTD.CO.UK","385.00","Transformation","7399","Conference Expenses","18/01/2016"
"Wolverhampton City Council","http://opendatacommunities.org/id/metropolitan-district-council/wolverhampton","BENCHMASTER LIMITED","170.00","The Maltings","8911","Equipment - Purchase","18/01/2016"
"Wolverhampton City Council","http://opendatacommunities.org/id/metropolitan-district-council/wolverhampton","WWW.ISTOCK.COM","313.00","City Direct","5971","Services - Professional Fees","18/01/2016"
"Wolverhampton City Council","http://opendatacommunities.org/id/metropolitan-district-council/wolverhampton","Amazon EU","14.49","Parent / Partnership Service","5969","Equipment - Purchase","18/01/2016"
"Wolverhampton City Council","http://opendatacommunities.org/id/metropolitan-district-council/wolverhampton","REDWINGS LODGE","-5.00","Adoption and Residence Team & Allowances","7011","Accommodation Costs","18/01/2016"
"Wolverhampton City Council","http://opendatacommunities.org/id/metropolitan-district-council/wolverhampton","TESCO STORES 5403","12.10","Swan Bank","5411","Provisions (Not for resale)","18/01/2016"
"Wolverhampton City Council","http://opendatacommunities.org/id/metropolitan-district-council/wolverhampton","ASDA SUPERSTORE","71.50","MAST 5 - Valley Park","5411","Provisions (Not for resale)","18/01/2016"
"Wolverhampton City Council","http://opendatacommunities.org/id/metropolitan-district-council/wolverhampton","WM MORRISON 024","1.67","Bilston Museum","5411","Materials for resale","18/01/2016"
"Wolverhampton City Council","http://opendatacommunities.org/id/metropolitan-district-council/wolverhampton","YMLP.COM","63.00","Art Gallery","7372","Computing - Purchase of Software","18/01/2016"
"Wolverhampton City Council","http://opendatacommunities.org/id/metropolitan-district-council/wolverhampton","CT WOLVERHAMPTON","272.50","MAST 5 - Valley Park","8398","Services - Supplies & Services to users","15/01/2016"
"Wolverhampton City Council","http://opendatacommunities.org/id/metropolitan-district-council/wolverhampton","HOMEBASE LTD 103","24.68","Children & Family Contact Services","5211","Materials","15/01/2016"
"Wolverhampton City Council","http://opendatacommunities.org/id/metropolitan-district-council/wolverhampton","TIPPERS WOLVERHAMPTON","34.61","Wholesale Market Facilities Management","5072","Cleaning Supplies and Materials","15/01/2016"
"Wolverhampton City Council","http://opendatacommunities.org/id/metropolitan-district-council/wolverhampton","FAMILY LINKS","7.00","MAST 6 - Priory Green","8299","Books","15/01/2016"
"Wolverhampton City Council","http://opendatacommunities.org/id/metropolitan-district-council/wolverhampton","E01546200000000","250.00","Dove - CIN SWU S17","6011","Financial Assistance In Exceptional Circ","15/01/2016"
"Wolverhampton City Council","http://opendatacommunities.org/id/metropolitan-district-council/wolverhampton","TESCO STORE 3414","30.00","School Crossing Patrol","5411","Comms - Mobile Telephones","15/01/2016"
"Wolverhampton City Council","http://opendatacommunities.org/id/metropolitan-district-council/wolverhampton","SAINSBURYS (2340)","130.10","Mayoral Expenses","5411","Hospitality","15/01/2016"
"Wolverhampton City Council","http://opendatacommunities.org/id/metropolitan-district-council/wolverhampton","PLUMB CENTER JEB","16.87","Caretakers Community Centre","1711","R&M - Departmental planned (external)","15/01/2016"
"Wolverhampton City Council","http://opendatacommunities.org/id/metropolitan-district-council/wolverhampton","WCC PHONE PAYMENTS","299.60","LAC Transitions Team","9399","Client Allowances","15/01/2016"
"Wolverhampton City Council","http://opendatacommunities.org/id/metropolitan-district-council/wolverhampton","PREMIER INN 44536490","328.00","Adoption and Residence Team & Allowances","5812","Educ Trips, Holidays, Outings, Activity","15/01/2016"
"Wolverhampton City Council","http://opendatacommunities.org/id/metropolitan-district-council/wolverhampton","Amazon UK Marketplace","3.50","Civic Halls Non Direct Management A/C","5942","Stationery","15/01/2016"
"Wolverhampton City Council","http://opendatacommunities.org/id/metropolitan-district-council/wolverhampton","SAINSBURYS 2040","5.55","MAST 8 - Wednesfield","5411","Provisions (Not for resale)","15/01/2016"
"Wolverhampton City Council","http://opendatacommunities.org/id/metropolitan-district-council/wolverhampton","CARE SHOP","185.16","Specialist Support Service - North","5999","Cleaning Supplies and Materials","15/01/2016"
"Wolverhampton City Council","http://opendatacommunities.org/id/metropolitan-district-council/wolverhampton","Amazon UK Marketplace","9.97","Civic Hall Administration Overhead Acct","5942","Stationery","15/01/2016"
"Wolverhampton City Council","http://opendatacommunities.org/id/metropolitan-district-council/wolverhampton","ANAPHYLAXIS CAMPAI","22.00","School Meals Statutory Standards","8398","Services - Professional Fees","15/01/2016"
"Wolverhampton City Council","http://opendatacommunities.org/id/metropolitan-district-council/wolverhampton","WWW.AUTODATA.LTD.UK","87.50","Fleet Management","2741","Stationery","15/01/2016"
"Wolverhampton City Council","http://opendatacommunities.org/id/metropolitan-district-council/wolverhampton","SAINSBURYS 2040","10.00","Ernest Bold Court","5411","Provisions (Not for resale)","15/01/2016"
"Wolverhampton City Council","http://opendatacommunities.org/id/metropolitan-district-council/wolverhampton","ARGOS LTD","49.98","Central Baths","5310","Equipment - Purchase","15/01/2016"
"Wolverhampton City Council","http://opendatacommunities.org/id/metropolitan-district-council/wolverhampton","ASDA HOME SHOPPING","-1.02","Ernest Bold Court","5411","Provisions (Not for resale)","15/01/2016"
"Wolverhampton City Council","http://opendatacommunities.org/id/metropolitan-district-council/wolverhampton","Amazon UK Marketplace","3.65","Members Expenses","5942","Computing - Consumables","15/01/2016"
"Wolverhampton City Council","http://opendatacommunities.org/id/metropolitan-district-council/wolverhampton","ARGOS RETAIL GROUP","50.94","LAC Admin Team","5310","Client Allowances","15/01/2016"
"Wolverhampton City Council","http://opendatacommunities.org/id/metropolitan-district-council/wolverhampton","TRAINLINE","108.63","Adoption and Residence Team & Allowances","4112","Public Transport","15/01/2016"
"Wolverhampton City Council","http://opendatacommunities.org/id/metropolitan-district-council/wolverhampton","WWW.WARWICKMUSIC.COM","30.90","Music Support Team","2741","Equipment - Purchase","15/01/2016"
"Wolverhampton City Council","http://opendatacommunities.org/id/metropolitan-district-council/wolverhampton","SUITES AND BEDS","173.33","LAC Transitions Team","5712","Client Allowances","15/01/2016"
"Wolverhampton City Council","http://opendatacommunities.org/id/metropolitan-district-council/wolverhampton","ASDA HOME SHOPPING","75.75","Ernest Bold Court","5411","Provisions (Not for resale)","15/01/2016"
"Wolverhampton City Council","http://opendatacommunities.org/id/metropolitan-district-council/wolverhampton","FTPE WEBTIS 1","38.40","LAC Transitions Team","4112","Public Transport","15/01/2016"
"Wolverhampton City Council","http://opendatacommunities.org/id/metropolitan-district-council/wolverhampton","Amazon UK Marketplace","51.59","Bert Williams Leisure Centre","5942","Equipment - Purchase","15/01/2016"
"Wolverhampton City Council","http://opendatacommunities.org/id/metropolitan-district-council/wolverhampton","THE NEWBURY HOTEL","60.00","Looked After Team 1","7011","Accommodation Costs","15/01/2016"
"Wolverhampton City Council","http://opendatacommunities.org/id/metropolitan-district-council/wolverhampton","ASDA SUPERSTORE","5.00","MAST 6 - Priory Green","5411","Stationery","15/01/2016"
"Wolverhampton City Council","http://opendatacommunities.org/id/metropolitan-district-council/wolverhampton","WWW.HOTLINE.CO.UK","560.41","Technical Support","5943","Stationery","15/01/2016"
"Wolverhampton City Council","http://opendatacommunities.org/id/metropolitan-district-council/wolverhampton","WEST COAST TRAINS","91.00","Public Health - Healthier Places Team","4112","Public Transport","15/01/2016"
"Wolverhampton City Council","http://opendatacommunities.org/id/metropolitan-district-council/wolverhampton","WWW.SWANFLIGHT.COM","187.53","Music Support Team","5948","Equipment - Purchase","15/01/2016"
"Wolverhampton City Council","http://opendatacommunities.org/id/metropolitan-district-council/wolverhampton","POST OFFICE COUNTER","329.00","Fostering Team & Allowances","9402","Comms - Postage","15/01/2016"
"Wolverhampton City Council","http://opendatacommunities.org/id/metropolitan-district-council/wolverhampton","WWW.PARTYDELIGHTS.CO.U","26.92","Central Baths","5947","Equipment - Purchase","15/01/2016"
"Wolverhampton City Council","http://opendatacommunities.org/id/metropolitan-district-council/wolverhampton","REDWINGS LODGE","15.30","Adoption and Residence Team & Allowances","7011","Accommodation Costs","15/01/2016"
"Wolverhampton City Council","http://opendatacommunities.org/id/metropolitan-district-council/wolverhampton","TFM FARM & COUNTRY SUP","87.97","Northicote Farm","5399","Equipment - Purchase","14/01/2016"
"Wolverhampton City Council","http://opendatacommunities.org/id/metropolitan-district-council/wolverhampton","BT PAY BY PHONE","62.97","Makers Dozen","4814","Comms - Telephone Call charges","14/01/2016"
"Wolverhampton City Council","http://opendatacommunities.org/id/metropolitan-district-council/wolverhampton","Amazon UK Marketplace","16.73","Health Protection & NHS Facing","5942","Equipment - Purchase","14/01/2016"
"Wolverhampton City Council","http://opendatacommunities.org/id/metropolitan-district-council/wolverhampton","PROTRADE LTD","37.45","Technician","5251","Equipment - Purchase","14/01/2016"
"Wolverhampton City Council","http://opendatacommunities.org/id/metropolitan-district-council/wolverhampton","Virgintrains.co.uk","72.60","HRA General","4112","Public Transport","14/01/2016"
"Wolverhampton City Council","http://opendatacommunities.org/id/metropolitan-district-council/wolverhampton","GET THE MAG","47.49","Fleet Management","5912","Stationery","14/01/2016"
"Wolverhampton City Council","http://opendatacommunities.org/id/metropolitan-district-council/wolverhampton","THE COAL AUTHORITY","30.00","Property Services - Commissioning","9399","Services - Professional Fees","14/01/2016"
"Wolverhampton City Council","http://opendatacommunities.org/id/metropolitan-district-council/wolverhampton","TRAINLINE","74.56","MAST - Central Team","4112","Public Transport","14/01/2016"
"Wolverhampton City Council","http://opendatacommunities.org/id/metropolitan-district-council/wolverhampton","BT BILL PAYMENT 1","31.19","Civic Halls Non Direct Management A/C","4812","Comms - Mobile Telephones","14/01/2016"
"Wolverhampton City Council","http://opendatacommunities.org/id/metropolitan-district-council/wolverhampton","SAINSBURYS (2340)","56.10","Creative Studies Delivery Area","5411","Provisions (Not for resale)","14/01/2016"
"Wolverhampton City Council","http://opendatacommunities.org/id/metropolitan-district-council/wolverhampton","FACEBOOK U7B5C8SA92","588.38","Communications & Marketing - General","7311","Marketing \ Non-staff advertising","14/01/2016"
"Wolverhampton City Council","http://opendatacommunities.org/id/metropolitan-district-council/wolverhampton","BETTWS MOTORS LIMITED","191.78","Towers Outdoor Education Centre","7538","Vehicle Maintenance - Repairs","14/01/2016"
"Wolverhampton City Council","http://opendatacommunities.org/id/metropolitan-district-council/wolverhampton","ASDA SUPERSTORE","146.25","LAC Transitions Team","5411","Client Allowances","14/01/2016"
"Wolverhampton City Council","http://opendatacommunities.org/id/metropolitan-district-council/wolverhampton","TRAINLINE","18.92","SEN Special Education Admin","4112","Public Transport","14/01/2016"
"Wolverhampton City Council","http://opendatacommunities.org/id/metropolitan-district-council/wolverhampton","WWW.PPLUK.COM","130.51","The Little Civic","8699","Services - General Licences","14/01/2016"
"Wolverhampton City Council","http://opendatacommunities.org/id/metropolitan-district-council/wolverhampton","MICHAEL BACHYK","73.15","Civic Hall Administration Overhead Acct","5422","Catering","14/01/2016"
"Wolverhampton City Council","http://opendatacommunities.org/id/metropolitan-district-council/wolverhampton","MARKS & SPENCER","9.74","Transformation","5411","Provisions (Not for resale)","14/01/2016"
"Wolverhampton City Council","http://opendatacommunities.org/id/metropolitan-district-council/wolverhampton","THE HOTEL RUSSELL F AN","35.49","Headstart","7011","Services - Supplies & Services to users","14/01/2016"
"Wolverhampton City Council","http://opendatacommunities.org/id/metropolitan-district-council/wolverhampton","FACEBOOK V7B5C8SA92","12.07","Communications & Marketing - General","7311","Marketing \ Non-staff advertising","14/01/2016"
"Wolverhampton City Council","http://opendatacommunities.org/id/metropolitan-district-council/wolverhampton","TESCO STORES 5403","9.63","Swan Bank","5411","Provisions (Not for resale)","14/01/2016"
"Wolverhampton City Council","http://opendatacommunities.org/id/metropolitan-district-council/wolverhampton","Amazon EU","10.62","LAC Education Team (LACE)","5969","Equipment - Purchase","14/01/2016"
"Wolverhampton City Council","http://opendatacommunities.org/id/metropolitan-district-council/wolverhampton","OFFICE DEPOT","52.62","Duke Street Bungalows","5111","Stationery","14/01/2016"
"Wolverhampton City Council","http://opendatacommunities.org/id/metropolitan-district-council/wolverhampton","Amazon EU","8.54","Members Expenses","5969","Equipment - Purchase","14/01/2016"
"Wolverhampton City Council","http://opendatacommunities.org/id/metropolitan-district-council/wolverhampton","ASDA SUPERSTORE","45.83","LAC Transitions Team","5411","Client Allowances","14/01/2016"
"Wolverhampton City Council","http://opendatacommunities.org/id/metropolitan-district-council/wolverhampton","REDWINGS LODGE","15.30","Adoption and Residence Team & Allowances","7011","Accommodation Costs","14/01/2016"
"Wolverhampton City Council","http://opendatacommunities.org/id/metropolitan-district-council/wolverhampton","TESCO STORES 6727","5.99","Youth Offending Team","5411","Provisions (Not for resale)","14/01/2016"
"Wolverhampton City Council","http://opendatacommunities.org/id/metropolitan-district-council/wolverhampton","THE POPPY APPEAL","220.00","Mayoral Expenses","8398","Hospitality","14/01/2016"
"Wolverhampton City Council","http://opendatacommunities.org/id/metropolitan-district-council/wolverhampton","Virgintrains.co.uk","154.60","HRA General","4112","Public Transport","14/01/2016"
"Wolverhampton City Council","http://opendatacommunities.org/id/metropolitan-district-council/wolverhampton","WM MORRISONS","4.12","MAST - Central Team","5411","Provisions (Not for resale)","14/01/2016"
"Wolverhampton City Council","http://opendatacommunities.org/id/metropolitan-district-council/wolverhampton","OFFICE DEPOT","16.53","Civic Centre","5111","Stationery","14/01/2016"
"Wolverhampton City Council","http://opendatacommunities.org/id/metropolitan-district-council/wolverhampton","CUMMINGS BROTHERS LOCK","10.83","Public Conveniences","7399","R&M - Departmental planned (external)","14/01/2016"
"Wolverhampton City Council","http://opendatacommunities.org/id/metropolitan-district-council/wolverhampton","ASDA HOME SHOPPING","0.05","Ernest Bold Court","5411","Provisions (Not for resale)","14/01/2016"
"Wolverhampton City Council","http://opendatacommunities.org/id/metropolitan-district-council/wolverhampton","WWW.WOLFGARTEN-TOO","79.97","Fleet Management","5261","Equipment - Purchase","14/01/2016"
"Wolverhampton City Council","http://opendatacommunities.org/id/metropolitan-district-council/wolverhampton","Virgintrains.co.uk","169.90","Looked After Team 1","4112","Public Transport","14/01/2016"
"Wolverhampton City Council","http://opendatacommunities.org/id/metropolitan-district-council/wolverhampton","SAINSBURYS (2340)","30.24","Childrens with Disabilities Team","5411","Provisions (Not for resale)","14/01/2016"
"Wolverhampton City Council","http://opendatacommunities.org/id/metropolitan-district-council/wolverhampton","AXMINSTER.CO.UK","7.47","Technician","5211","Equipment - Purchase","14/01/2016"
"Wolverhampton City Council","http://opendatacommunities.org/id/metropolitan-district-council/wolverhampton","UTILITY WAREHOUSE","30.99","HRA General","4900","Electricity","14/01/2016"
"Wolverhampton City Council","http://opendatacommunities.org/id/metropolitan-district-council/wolverhampton","Amazon UK Marketplace","4.99","Health Protection & NHS Facing","5942","Equipment - Purchase","14/01/2016"
"Wolverhampton City Council","http://opendatacommunities.org/id/metropolitan-district-council/wolverhampton","PUMPKIN CAFE","1.99","Headstart","5814","Educ Trips, Holidays, Outings, Activity","14/01/2016"
"Wolverhampton City Council","http://opendatacommunities.org/id/metropolitan-district-council/wolverhampton","RYMAN","27.52","Legal Services","5943","Stationery","13/01/2016"
"Wolverhampton City Council","http://opendatacommunities.org/id/metropolitan-district-council/wolverhampton","OFFICE DEPOT","3.77","SEN Sensory Inclusion","5111","Stationery","13/01/2016"
"Wolverhampton City Council","http://opendatacommunities.org/id/metropolitan-district-council/wolverhampton","G & M HALE (SUNDRIES)","22.70","Discretionary Fund","5992","Materials","13/01/2016"
"Wolverhampton City Council","http://opendatacommunities.org/id/metropolitan-district-council/wolverhampton","ASDA HOME SHOPPING","47.00","46a, Second Avenue, Low Hill","5411","Provisions (Not for resale)","13/01/2016"
"Wolverhampton City Council","http://opendatacommunities.org/id/metropolitan-district-council/wolverhampton","HOME BARGAINS","13.18","Cemeteries","5251","Equipment - Purchase","13/01/2016"
"Wolverhampton City Council","http://opendatacommunities.org/id/metropolitan-district-council/wolverhampton","B&M RETAIL LTD","14.79","Cemeteries","5310","Equipment - Purchase","13/01/2016"
"Wolverhampton City Council","http://opendatacommunities.org/id/metropolitan-district-council/wolverhampton","Amazon EU","45.17","Technical Support","5969","Equipment - Purchase","13/01/2016"
"Wolverhampton City Council","http://opendatacommunities.org/id/metropolitan-district-council/wolverhampton","REDWINGS LODGE","194.75","Adoption and Residence Team & Allowances","7011","Accommodation Costs","13/01/2016"
"Wolverhampton City Council","http://opendatacommunities.org/id/metropolitan-district-council/wolverhampton","OFFICE DEPOT","87.02","LAC Transitions Team","5111","Stationery","13/01/2016"
"Wolverhampton City Council","http://opendatacommunities.org/id/metropolitan-district-council/wolverhampton","DULUX DEC CENTRE","134.80","Technical Material","5719","Equipment - Purchase","13/01/2016"
"Wolverhampton City Council","http://opendatacommunities.org/id/metropolitan-district-council/wolverhampton","PREMIER INN","158.98","Workforce Development","3811","Accommodation Costs","13/01/2016"
"Wolverhampton City Council","http://opendatacommunities.org/id/metropolitan-district-council/wolverhampton","Amazon UK Marketplace","-14.43","Independent Living Service","5999","Computing - Purchase of Hardware","13/01/2016"
"Wolverhampton City Council","http://opendatacommunities.org/id/metropolitan-district-council/wolverhampton","UNTOUCHABLES","63.25","Cemeteries","5231","Materials","13/01/2016"
"Wolverhampton City Council","http://opendatacommunities.org/id/metropolitan-district-council/wolverhampton","THE FLOWER STALL","20.83","Mayoral Expenses","5992","Hospitality","13/01/2016"
"Wolverhampton City Council","http://opendatacommunities.org/id/metropolitan-district-council/wolverhampton","ONE STOP 1009","2.50","MAST 1 - Deansfield","5411","Provisions (Not for resale)","13/01/2016"
"Wolverhampton City Council","http://opendatacommunities.org/id/metropolitan-district-council/wolverhampton","TRAINLINE","467.16","Delivery & OCE Development","4112","Public Transport","13/01/2016"
"Wolverhampton City Council","http://opendatacommunities.org/id/metropolitan-district-council/wolverhampton","OFFICE DEPOT","-14.28","SEN Sensory Inclusion","5111","Stationery","13/01/2016"
"Wolverhampton City Council","http://opendatacommunities.org/id/metropolitan-district-council/wolverhampton","ASDA HOME SHOPPING","68.33","Ernest Bold Court","5411","Provisions (Not for resale)","13/01/2016"
"Wolverhampton City Council","http://opendatacommunities.org/id/metropolitan-district-council/wolverhampton","TRAINLINE","26.06","Adoption and Residence Team & Allowances","4112","Public Transport","13/01/2016"
"Wolverhampton City Council","http://opendatacommunities.org/id/metropolitan-district-council/wolverhampton","FTPE WEBTIS 1","74.70","LAC Transitions Team","4112","Client Allowances","13/01/2016"
"Wolverhampton City Council","http://opendatacommunities.org/id/metropolitan-district-council/wolverhampton","Amazon UK Marketplace","23.97","Bilston Museum","5942","Materials","13/01/2016"
"Wolverhampton City Council","http://opendatacommunities.org/id/metropolitan-district-council/wolverhampton","POST OFFICE COUNTER","58.75","Looked After Team 1","9402","Comms - Postage","13/01/2016"
"Wolverhampton City Council","http://opendatacommunities.org/id/metropolitan-district-council/wolverhampton","SAINSBURYS SACAT 2040","2.50","Duke Street Bungalows","5411","Provisions (Not for resale)","13/01/2016"
"Wolverhampton City Council","http://opendatacommunities.org/id/metropolitan-district-council/wolverhampton","G & M HALE LTD","80.60","Discretionary Fund","5992","Materials","13/01/2016"
"Wolverhampton City Council","http://opendatacommunities.org/id/metropolitan-district-council/wolverhampton","FTPE WEBTIS 1","72.90","LAC Transitions Team","4112","Public Transport","13/01/2016"
"Wolverhampton City Council","http://opendatacommunities.org/id/metropolitan-district-council/wolverhampton","OFFICE DEPOT","16.57","CIN - Whitmore Reans CC - Area 5","5111","Stationery","13/01/2016"
"Wolverhampton City Council","http://opendatacommunities.org/id/metropolitan-district-council/wolverhampton","OFFICE DEPOT","20.97","Upper Pendeford Farm Childrens Home","5111","Stationery","13/01/2016"
"Wolverhampton City Council","http://opendatacommunities.org/id/metropolitan-district-council/wolverhampton","B & Q","47.82","Ernest Bold Court","5211","Equipment - R & M","13/01/2016"
"Wolverhampton City Council","http://opendatacommunities.org/id/metropolitan-district-council/wolverhampton","TRAINLINE","51.42","Destitute Plus","4112","Public Transport","13/01/2016"
"Wolverhampton City Council","http://opendatacommunities.org/id/metropolitan-district-council/wolverhampton","Virgintrains.co.uk","64.10","Planning","4112","Public Transport","13/01/2016"
"Wolverhampton City Council","http://opendatacommunities.org/id/metropolitan-district-council/wolverhampton","MAPLIN WOLVERHAMPT WV1","16.23","Legal Services","5732","Stationery","13/01/2016"
"Wolverhampton City Council","http://opendatacommunities.org/id/metropolitan-district-council/wolverhampton","OFFICE DEPOT","57.38","Customer Services","5111","Stationery","13/01/2016"
"Wolverhampton City Council","http://opendatacommunities.org/id/metropolitan-district-council/wolverhampton","CPC","13.06","Technician","5065","Equipment - Purchase","13/01/2016"
"Wolverhampton City Council","http://opendatacommunities.org/id/metropolitan-district-council/wolverhampton","FTPE WEBTIS 1","32.00","LAC Transitions Team","4112","Client Allowances","13/01/2016"
"Wolverhampton City Council","http://opendatacommunities.org/id/metropolitan-district-council/wolverhampton","LOYD MORR WILLENHALL","250.00","Priory Green - CIN SWU S17","6011","Financial Assistance In Exceptional Circ","13/01/2016"
"Wolverhampton City Council","http://opendatacommunities.org/id/metropolitan-district-council/wolverhampton","PREMIER INN","274.97","Workforce Development","3811","Accommodation Costs","13/01/2016"
"Wolverhampton City Council","http://opendatacommunities.org/id/metropolitan-district-council/wolverhampton","Amazon UK Marketplace","14.48","Bilston Museum","5942","Materials","13/01/2016"
"Wolverhampton City Council","http://opendatacommunities.org/id/metropolitan-district-council/wolverhampton","Amazon UK Marketplace","105.78","LAC Admin Team","5942","Client Allowances","13/01/2016"
"Wolverhampton City Council","http://opendatacommunities.org/id/metropolitan-district-council/wolverhampton","WOLVES CC","173.68","Whitmore Reans - CIN SWU S17","9399","Services - Fees and Charges","13/01/2016"
"Wolverhampton City Council","http://opendatacommunities.org/id/metropolitan-district-council/wolverhampton","ARGOS DIRECT","-86.18","Graiseley - CIN SWU S17","5310","Equipment - Purchase","13/01/2016"
"Wolverhampton City Council","http://opendatacommunities.org/id/metropolitan-district-council/wolverhampton","SAFETYSHOP","71.46","Aldersley Leisure Village","5099","Equipment - Purchase","13/01/2016"
"Wolverhampton City Council","http://opendatacommunities.org/id/metropolitan-district-council/wolverhampton","SAIN ST MARKS","250.00","Childrens with Disabilities Team","6011","Financial Assistance In Exceptional Circ","12/01/2016"
"Wolverhampton City Council","http://opendatacommunities.org/id/metropolitan-district-council/wolverhampton","ASDA HOME SHOPPING","-5.68","Upper Pendeford Farm Childrens Home","5411","Provisions (Not for resale)","12/01/2016"
"Wolverhampton City Council","http://opendatacommunities.org/id/metropolitan-district-council/wolverhampton","OFFICE DEPOT","20.46","Education Catering - General Overheads","5111","Stationery","12/01/2016"
"Wolverhampton City Council","http://opendatacommunities.org/id/metropolitan-district-council/wolverhampton","MAPLIN WOLVERHAMPT WV1","-12.98","Public Health Support Costs","5732","Equipment - Purchase","12/01/2016"
"Wolverhampton City Council","http://opendatacommunities.org/id/metropolitan-district-council/wolverhampton","OFFICE DEPOT","125.69","Education Catering - General Overheads","5111","Stationery","12/01/2016"
"Wolverhampton City Council","http://opendatacommunities.org/id/metropolitan-district-council/wolverhampton","ASDA HOME SHOPPING","189.16","Upper Pendeford Farm Childrens Home","5411","Provisions (Not for resale)","12/01/2016"
"Wolverhampton City Council","http://opendatacommunities.org/id/metropolitan-district-council/wolverhampton","Amazon UK Marketplace","25.82","College of Further Education","5942","Equipment - Purchase","12/01/2016"
"Wolverhampton City Council","http://opendatacommunities.org/id/metropolitan-district-council/wolverhampton","WWW.THEPLASTICSHOP.CO.","313.30","Maintenance of Exhibits","5072","Equipment - Purchase","12/01/2016"
"Wolverhampton City Council","http://opendatacommunities.org/id/metropolitan-district-council/wolverhampton","SHAWS & SONS LIMITED","102.00","Mental Health Assessment & Care Mgmt","2741","Publications","12/01/2016"
"Wolverhampton City Council","http://opendatacommunities.org/id/metropolitan-district-council/wolverhampton","ASDA HOME SHOPPING","-0.74","Upper Pendeford Farm Childrens Home","5411","Provisions (Not for resale)","12/01/2016"
"Wolverhampton City Council","http://opendatacommunities.org/id/metropolitan-district-council/wolverhampton","SCREWFIX DIRECT","45.82","College of Further Education","5211","Materials","12/01/2016"
"Wolverhampton City Council","http://opendatacommunities.org/id/metropolitan-district-council/wolverhampton","WEST COAST TRAINS","114.40","Graiseley - CIN SWU S17","4112","Public Transport","12/01/2016"
"Wolverhampton City Council","http://opendatacommunities.org/id/metropolitan-district-council/wolverhampton","Amazon UK Marketplace","35.46","School Improvement","5942","Stationery","12/01/2016"
"Wolverhampton City Council","http://opendatacommunities.org/id/metropolitan-district-council/wolverhampton","TRAINLINE","20.55","Legal Services","4112","Public Transport","12/01/2016"
"Wolverhampton City Council","http://opendatacommunities.org/id/metropolitan-district-council/wolverhampton","COMBINED COURT","8860.00","Head of Service - CINCP","9222","Services - Professional Fees","12/01/2016"
"Wolverhampton City Council","http://opendatacommunities.org/id/metropolitan-district-council/wolverhampton","CENTURY ELECTRICAL WHO","15.50","Caretakers Community Centre","5065","R&M - Departmental planned (external)","12/01/2016"
"Wolverhampton City Council","http://opendatacommunities.org/id/metropolitan-district-council/wolverhampton","Virgintrains.co.uk","7.50","Parent / Partnership Service","4112","Public Transport","12/01/2016"
"Wolverhampton City Council","http://opendatacommunities.org/id/metropolitan-district-council/wolverhampton","KITEPACKAGING.CO.UK","33.14","Maintenance of Exhibits","4225","Equipment - Purchase","12/01/2016"
"Wolverhampton City Council","http://opendatacommunities.org/id/metropolitan-district-council/wolverhampton","BLACK COUNTRY SKIP HIR","155.00","Warstones - CIN SWU S17","7394","Refuse Collection","12/01/2016"
"Wolverhampton City Council","http://opendatacommunities.org/id/metropolitan-district-council/wolverhampton","BERWICK CARE EQUIPMENT","500.00","46a, Second Avenue, Low Hill","5047","Equipment - Purchase","12/01/2016"
"Wolverhampton City Council","http://opendatacommunities.org/id/metropolitan-district-council/wolverhampton","UNTOUCHABLES","5.83","Education Catering - General Overheads","5231","Materials","12/01/2016"
"Wolverhampton City Council","http://opendatacommunities.org/id/metropolitan-district-council/wolverhampton","CENTURY ELECTRICAL WHO","7.30","Caretakers Community Centre","5065","R&M - Departmental planned (external)","12/01/2016"
"Wolverhampton City Council","http://opendatacommunities.org/id/metropolitan-district-council/wolverhampton","SAINSBURYS (2340)","30.24","Physical & Sensory Disabilities Mgmt","5411","Provisions (Not for resale)","12/01/2016"
"Wolverhampton City Council","http://opendatacommunities.org/id/metropolitan-district-council/wolverhampton","Virgintrains.co.uk","7.50","Parent / Partnership Service","4112","Public Transport","12/01/2016"
"Wolverhampton City Council","http://opendatacommunities.org/id/metropolitan-district-council/wolverhampton","OFFICE DEPOT","2.24","Education Catering - General Overheads","5111","Stationery","12/01/2016"
"Wolverhampton City Council","http://opendatacommunities.org/id/metropolitan-district-council/wolverhampton","IKEA SACAT","32.50","LAC Transitions Team","5719","Client Allowances","12/01/2016"
"Wolverhampton City Council","http://opendatacommunities.org/id/metropolitan-district-council/wolverhampton","B & Q","2.90","Caretakers Community Centre","5211","R&M - Departmental planned (external)","12/01/2016"
"Wolverhampton City Council","http://opendatacommunities.org/id/metropolitan-district-council/wolverhampton","Amazon UK Marketplace","192.32","School Improvement","5942","Stationery","12/01/2016"
"Wolverhampton City Council","http://opendatacommunities.org/id/metropolitan-district-council/wolverhampton","LBHACKNEY PYMT","64.00","Valley Park - CIN SWU S17","9399","TPP - Payments to Local Authorities","12/01/2016"
"Wolverhampton City Council","http://opendatacommunities.org/id/metropolitan-district-council/wolverhampton","WM MORRISONS","6.52","Nelson Mandela House","5411","Provisions (Not for resale)","12/01/2016"
"Wolverhampton City Council","http://opendatacommunities.org/id/metropolitan-district-council/wolverhampton","WEST PARK NEWS","20.55","Whitmore Reans - CIN SWU S17","5411","Provisions (Not for resale)","12/01/2016"
"Wolverhampton City Council","http://opendatacommunities.org/id/metropolitan-district-council/wolverhampton","TOOLSTATION LTD","31.41","Education Catering - General Overheads","5251","Equipment - Purchase","12/01/2016"
"Wolverhampton City Council","http://opendatacommunities.org/id/metropolitan-district-council/wolverhampton","B&M RETAIL","28.02","LAC Transitions Team","5310","Client Allowances","12/01/2016"
"Wolverhampton City Council","http://opendatacommunities.org/id/metropolitan-district-council/wolverhampton","M&S E COMMERCE","26.00","Transformation","5411","Provisions (Not for resale)","12/01/2016"
"Wolverhampton City Council","http://opendatacommunities.org/id/metropolitan-district-council/wolverhampton","34SP.com Ltd","10.00","Childrens Centres & Early Years","4816","Computing - Purchase of Software","12/01/2016"
"Wolverhampton City Council","http://opendatacommunities.org/id/metropolitan-district-council/wolverhampton","Virgintrains.co.uk","129.00","Members Expenses","4112","Public Transport","12/01/2016"
"Wolverhampton City Council","http://opendatacommunities.org/id/metropolitan-district-council/wolverhampton","Amazon UK Marketplace","10.00","Customer Services","5942","Books","12/01/2016"
"Wolverhampton City Council","http://opendatacommunities.org/id/metropolitan-district-council/wolverhampton","DUDLEY MBC  INTERN","20.24","Priory Green - CIN SWU S17","8999","Printing","12/01/2016"
"Wolverhampton City Council","http://opendatacommunities.org/id/metropolitan-district-council/wolverhampton","WWW.DERBY.GOV.UK","16.29","Head of Service - CINCP","9399","Services - Professional Fees","12/01/2016"
"Wolverhampton City Council","http://opendatacommunities.org/id/metropolitan-district-council/wolverhampton","BLITZ RECYCLING LTD","144.00","Graiseley - CIN SWU S17","7394","Equipment - Purchase","12/01/2016"
"Wolverhampton City Council","http://opendatacommunities.org/id/metropolitan-district-council/wolverhampton","TESCO STORES 3414","2.48","Mayoral Expenses","5411","Hospitality","12/01/2016"
"Wolverhampton City Council","http://opendatacommunities.org/id/metropolitan-district-council/wolverhampton","STAPLES UK","63.48","Bilston 1 - CIN SWU S17","5943","Stationery","11/01/2016"
"Wolverhampton City Council","http://opendatacommunities.org/id/metropolitan-district-council/wolverhampton","WWW.SEVERNTRENTSEARCHE","455.00","HRA General","4900","Services - Professional Fees","11/01/2016"
"Wolverhampton City Council","http://opendatacommunities.org/id/metropolitan-district-council/wolverhampton","Amazon UK Marketplace","6.57","Global Budgets","5942","Books","11/01/2016"
"Wolverhampton City Council","http://opendatacommunities.org/id/metropolitan-district-council/wolverhampton","Amazon UK Marketplace","3.21","Information & Intelligence","5942","Books","11/01/2016"
"Wolverhampton City Council","http://opendatacommunities.org/id/metropolitan-district-council/wolverhampton","Amazon Svcs Europe,SAR","7.69","Global Budgets","5942","Books","11/01/2016"
"Wolverhampton City Council","http://opendatacommunities.org/id/metropolitan-district-council/wolverhampton","Amazon UK Marketplace","3.46","Information & Intelligence","5942","Books","11/01/2016"
"Wolverhampton City Council","http://opendatacommunities.org/id/metropolitan-district-council/wolverhampton","ARGOS RETAIL GROUP","106.62","LAC Transitions Team","5310","Client Allowances","11/01/2016"
"Wolverhampton City Council","http://opendatacommunities.org/id/metropolitan-district-council/wolverhampton","Wix.com","1.90","Technical Support","5817","Computing - Purchase of Software","11/01/2016"
"Wolverhampton City Council","http://opendatacommunities.org/id/metropolitan-district-council/wolverhampton","BIOTECTS LTD","49.00","Learning Services","7338","Printing","11/01/2016"
"Wolverhampton City Council","http://opendatacommunities.org/id/metropolitan-district-council/wolverhampton","LIDL UK","13.24","Children & Family Contact Services","5411","Provisions (Not for resale)","11/01/2016"
"Wolverhampton City Council","http://opendatacommunities.org/id/metropolitan-district-council/wolverhampton","Amazon Prime","79.00","CIN - Bilston CC1 - Area 2","5968","Subscriptions","11/01/2016"
"Wolverhampton City Council","http://opendatacommunities.org/id/metropolitan-district-council/wolverhampton","OFFICE DEPOT","-26.88","MAST 8 - Wednesfield","5111","Stationery","11/01/2016"
"Wolverhampton City Council","http://opendatacommunities.org/id/metropolitan-district-council/wolverhampton","WM MORRISON 024","7.00","Ernest Bold Court","5411","Provisions (Not for resale)","11/01/2016"
"Wolverhampton City Council","http://opendatacommunities.org/id/metropolitan-district-council/wolverhampton","VWO.com","41.53","City Direct","7399","Equipment - Purchase","11/01/2016"
"Wolverhampton City Council","http://opendatacommunities.org/id/metropolitan-district-council/wolverhampton","VIRGIN MEDIA PYMTS","24.62","Bilston Museum","4814","Comms - Telephone Rental","11/01/2016"
"Wolverhampton City Council","http://opendatacommunities.org/id/metropolitan-district-council/wolverhampton","Amazon UK Marketplace","65.98","LAC Admin Team","5942","Client Allowances","11/01/2016"
"Wolverhampton City Council","http://opendatacommunities.org/id/metropolitan-district-council/wolverhampton","POST OFFICE COUNTER","2.36","Independent Living Service","9402","Comms - Postage","11/01/2016"
"Wolverhampton City Council","http://opendatacommunities.org/id/metropolitan-district-council/wolverhampton","WEST COAST TRAINS","18.30","Children & Young People Support Costs","4112","Public Transport","11/01/2016"
"Wolverhampton City Council","http://opendatacommunities.org/id/metropolitan-district-council/wolverhampton","Amazon UK Marketplace","137.33","LAC Admin Team","5942","Client Allowances","11/01/2016"
"Wolverhampton City Council","http://opendatacommunities.org/id/metropolitan-district-council/wolverhampton","ASDA SUPERSTORE","47.48","Children & Family Contact Services","5411","Provisions (Not for resale)","11/01/2016"
"Wolverhampton City Council","http://opendatacommunities.org/id/metropolitan-district-council/wolverhampton","ARGOS RETAIL GROUP","12.49","LAC Transitions Team","5310","Client Allowances","11/01/2016"
"Wolverhampton City Council","http://opendatacommunities.org/id/metropolitan-district-council/wolverhampton","ASDA HOME SHOPPING","95.73","Ernest Bold Court","5411","Provisions (Not for resale)","11/01/2016"
"Wolverhampton City Council","http://opendatacommunities.org/id/metropolitan-district-council/wolverhampton","ROYAL MAIL  0845606040","1.50","Revenues","9402","Comms - Postage","11/01/2016"
"Wolverhampton City Council","http://opendatacommunities.org/id/metropolitan-district-council/wolverhampton","TESCO STORES 5194","-1.47","Towers Outdoor Education Centre","5411","Provisions (Not for resale)","11/01/2016"
"Wolverhampton City Council","http://opendatacommunities.org/id/metropolitan-district-council/wolverhampton","Amazon UK Marketplace","37.86","LAC Admin Team","5942","Client Allowances","11/01/2016"
"Wolverhampton City Council","http://opendatacommunities.org/id/metropolitan-district-council/wolverhampton","Amazon UK Marketplace","2.81","Global Budgets","5942","Books","11/01/2016"
"Wolverhampton City Council","http://opendatacommunities.org/id/metropolitan-district-council/wolverhampton","WICKES BUILDING","140.76","Big Ceramics","5211","Materials","11/01/2016"
"Wolverhampton City Council","http://opendatacommunities.org/id/metropolitan-district-council/wolverhampton","Amazon EU","119.89","LAC Admin Team","5969","Client Allowances","11/01/2016"
"Wolverhampton City Council","http://opendatacommunities.org/id/metropolitan-district-council/wolverhampton","T GOLF LIMITED","148.00","Technical Support","5941","Equipment - Purchase","11/01/2016"
"Wolverhampton City Council","http://opendatacommunities.org/id/metropolitan-district-council/wolverhampton","OFFICE DEPOT","8.44","MAST 1 - Deansfield","5111","Stationery","11/01/2016"
"Wolverhampton City Council","http://opendatacommunities.org/id/metropolitan-district-council/wolverhampton","BARCLAYS BANK PLC","240.00","Valley Park - CIN SWU S17","6011","Financial Assistance In Exceptional Circ","11/01/2016"
"Wolverhampton City Council","http://opendatacommunities.org/id/metropolitan-district-council/wolverhampton","TESCO STORE 3414","20.00","School Crossing Patrol","5411","Comms - Mobile Telephones","11/01/2016"
"Wolverhampton City Council","http://opendatacommunities.org/id/metropolitan-district-council/wolverhampton","WWW.SEVERNTRENTSEARCHE","455.00","HRA General","4900","Services - Professional Fees","11/01/2016"
"Wolverhampton City Council","http://opendatacommunities.org/id/metropolitan-district-council/wolverhampton","ASDA SUPERSTORE","37.98","Swan Bank","5411","Provisions (Not for resale)","11/01/2016"
"Wolverhampton City Council","http://opendatacommunities.org/id/metropolitan-district-council/wolverhampton","BARCLAYS BANK PLC","240.00","Valley Park - CIN SWU S17","6011","Financial Assistance In Exceptional Circ","11/01/2016"
"Wolverhampton City Council","http://opendatacommunities.org/id/metropolitan-district-council/wolverhampton","WAITROSE 696","17.33","MAST 4 - Warstones","5411","Provisions (Not for resale)","11/01/2016"
"Wolverhampton City Council","http://opendatacommunities.org/id/metropolitan-district-council/wolverhampton","WWW.SEVERNTRENTSEARCHE","455.00","Legal Services","4900","Electricity","11/01/2016"
"Wolverhampton City Council","http://opendatacommunities.org/id/metropolitan-district-council/wolverhampton","OFFICE DEPOT","76.53","Ernest Bold Court","5111","Stationery","11/01/2016"
"Wolverhampton City Council","http://opendatacommunities.org/id/metropolitan-district-council/wolverhampton","ASDA HOME SHOPPING","-4.28","Ernest Bold Court","5411","Provisions (Not for resale)","11/01/2016"
"Wolverhampton City Council","http://opendatacommunities.org/id/metropolitan-district-council/wolverhampton","Amazon UK Marketplace","69.99","LAC Admin Team","5942","Client Allowances","11/01/2016"
"Wolverhampton City Council","http://opendatacommunities.org/id/metropolitan-district-council/wolverhampton","Amazon UK Marketplace","31.92","LAC Admin Team","5942","Client Allowances","11/01/2016"
"Wolverhampton City Council","http://opendatacommunities.org/id/metropolitan-district-council/wolverhampton","REGISTRARS OFFICE","20.00","Adoption and Residence Team & Allowances","8299","Services - Fees and Charges","11/01/2016"
"Wolverhampton City Council","http://opendatacommunities.org/id/metropolitan-district-council/wolverhampton","OFFICE DEPOT","77.55","SEN Sensory Inclusion","5111","Stationery","11/01/2016"
"Wolverhampton City Council","http://opendatacommunities.org/id/metropolitan-district-council/wolverhampton","BT PAY BY PHONE","83.47","Bilston Museum","4814","Comms - Telephone Rental","11/01/2016"
"Wolverhampton City Council","http://opendatacommunities.org/id/metropolitan-district-council/wolverhampton","Virgintrains.co.uk","19.40","Looked After Team 1","4112","Public Transport","11/01/2016"
"Wolverhampton City Council","http://opendatacommunities.org/id/metropolitan-district-council/wolverhampton","WVR.UK (HOSEASONS GP)","239.68","Adoption and Residence Team & Allowances","4722","Accommodation Costs","11/01/2016"
"Wolverhampton City Council","http://opendatacommunities.org/id/metropolitan-district-council/wolverhampton","TRAINLINE","-52.00","Art Gallery","4112","Public Transport","11/01/2016"
"Wolverhampton City Council","http://opendatacommunities.org/id/metropolitan-district-council/wolverhampton","ARGOS RETAIL GROUP","188.94","LAC Admin Team","5310","Client Allowances","11/01/2016"
"Wolverhampton City Council","http://opendatacommunities.org/id/metropolitan-district-council/wolverhampton","TESCO STORES 6727","7.80","Youth Offending Team","5411","Provisions (Not for resale)","08/01/2016"
"Wolverhampton City Council","http://opendatacommunities.org/id/metropolitan-district-council/wolverhampton","PARCELFORCE WORLDWIDE","16.49","Contemporary Gallery","4214","Comms - Postage","08/01/2016"
"Wolverhampton City Council","http://opendatacommunities.org/id/metropolitan-district-council/wolverhampton","NETWORK WEST MIDLANDS","84.00","CIN - Whitmore Reans CC - Area 5","9399","Services - Fees and Charges","08/01/2016"
"Wolverhampton City Council","http://opendatacommunities.org/id/metropolitan-district-council/wolverhampton","CPC","39.17","Maintenance of Exhibits","5065","Equipment - Purchase","08/01/2016"
"Wolverhampton City Council","http://opendatacommunities.org/id/metropolitan-district-council/wolverhampton","Virgintrains.co.uk","156.50","Members Expenses","4112","Public Transport","08/01/2016"
"Wolverhampton City Council","http://opendatacommunities.org/id/metropolitan-district-council/wolverhampton","COMBINED COURT","155.00","Rents Management","9222","Services - Professional Fees","08/01/2016"
"Wolverhampton City Council","http://opendatacommunities.org/id/metropolitan-district-council/wolverhampton","SAINSBURYS (2340)","15.71","Creative Studies Delivery Area","5411","Provisions (Not for resale)","08/01/2016"
"Wolverhampton City Council","http://opendatacommunities.org/id/metropolitan-district-council/wolverhampton","Amazon EU","34.06","MAST 5 - Valley Park","5969","Equipment - Purchase","08/01/2016"
"Wolverhampton City Council","http://opendatacommunities.org/id/metropolitan-district-council/wolverhampton","E01510300000000","150.00","46a, Second Avenue, Low Hill","6011","Financial Assistance In Exceptional Circ","08/01/2016"
"Wolverhampton City Council","http://opendatacommunities.org/id/metropolitan-district-council/wolverhampton","CENTURY ELECTRICAL WHO","-1.16","Caretakers Community Centre","5065","R&M - Departmental planned (external)","08/01/2016"
"Wolverhampton City Council","http://opendatacommunities.org/id/metropolitan-district-council/wolverhampton","WPCHRG.COM","11.00","WAVE - General","8999","Subscriptions","08/01/2016"
"Wolverhampton City Council","http://opendatacommunities.org/id/metropolitan-district-council/wolverhampton","IGLOO SOFTWARE","1462.79","Learning Technologies","7372","Computing - Purchase of Software","08/01/2016"
"Wolverhampton City Council","http://opendatacommunities.org/id/metropolitan-district-council/wolverhampton","Amazon EU","39.94","Information & Intelligence","5969","Equipment - Purchase","08/01/2016"
"Wolverhampton City Council","http://opendatacommunities.org/id/metropolitan-district-council/wolverhampton","CORPORATE WEAR LTD","548.75","Register Office","7399","Clothing / Uniforms","08/01/2016"
"Wolverhampton City Council","http://opendatacommunities.org/id/metropolitan-district-council/wolverhampton","WWW.ICO.GOV.UK","35.00","Members Expenses","9399","Subscriptions","08/01/2016"
"Wolverhampton City Council","http://opendatacommunities.org/id/metropolitan-district-council/wolverhampton","TESCO STORES 5194","196.57","Towers Outdoor Education Centre","5411","Provisions (Not for resale)","08/01/2016"
"Wolverhampton City Council","http://opendatacommunities.org/id/metropolitan-district-council/wolverhampton","PAYPAL  EVERYGENERA","60.00","Collections","2741","Services - Professional Fees","08/01/2016"
"Wolverhampton City Council","http://opendatacommunities.org/id/metropolitan-district-council/wolverhampton","TRAINLINE","129.08","Headstart","4112","Public Transport","08/01/2016"
"Wolverhampton City Council","http://opendatacommunities.org/id/metropolitan-district-council/wolverhampton","WEST COAST TRAINS","75.30","LAC Education Team (LACE)","4112","Public Transport","08/01/2016"
"Wolverhampton City Council","http://opendatacommunities.org/id/metropolitan-district-council/wolverhampton","HMCOURTS-SERVICE.G","5463.00","Revenues","9222","Services - Fees and Charges","08/01/2016"
"Wolverhampton City Council","http://opendatacommunities.org/id/metropolitan-district-council/wolverhampton","ARGOS RETAIL GROUP","16.66","Fleet Management","5310","Equipment - Purchase","08/01/2016"
"Wolverhampton City Council","http://opendatacommunities.org/id/metropolitan-district-council/wolverhampton","Amazon UK Marketplace","10.99","Site Development Asset Management","5942","Equipment - Purchase","08/01/2016"
"Wolverhampton City Council","http://opendatacommunities.org/id/metropolitan-district-council/wolverhampton","FACEBOOK QX4KB8EB92","11.53","Communications & Marketing - General","7311","Marketing \ Non-staff advertising","08/01/2016"
"Wolverhampton City Council","http://opendatacommunities.org/id/metropolitan-district-council/wolverhampton","OFFICE DEPOT","66.82","Macmillan Welfare Rights","5111","Stationery","08/01/2016"
"Wolverhampton City Council","http://opendatacommunities.org/id/metropolitan-district-council/wolverhampton","ARTDISCOUNT/GRANTH","812.50","Education And Access","5943","Materials","08/01/2016"
"Wolverhampton City Council","http://opendatacommunities.org/id/metropolitan-district-council/wolverhampton","OFFICE DEPOT","103.32","Children's Village Children Centre","5111","Stationery","08/01/2016"
"Wolverhampton City Council","http://opendatacommunities.org/id/metropolitan-district-council/wolverhampton","SAINSBURYS SACAT 2040","3.33","Duke Street Bungalows","5411","Stationery","08/01/2016"
"Wolverhampton City Council","http://opendatacommunities.org/id/metropolitan-district-council/wolverhampton","CENTRAL SOURCE LTD","67.45","Technician","2741","Equipment - Purchase","08/01/2016"
"Wolverhampton City Council","http://opendatacommunities.org/id/metropolitan-district-council/wolverhampton","OFFICE DEPOT","13.40","MAST 8 - Wednesfield","5111","Stationery","08/01/2016"
"Wolverhampton City Council","http://opendatacommunities.org/id/metropolitan-district-council/wolverhampton","TRAINLINE","185.13","LAC Admin Team","4112","Client Allowances","08/01/2016"
"Wolverhampton City Council","http://opendatacommunities.org/id/metropolitan-district-council/wolverhampton","HMCOURTS-SERVICE.G","264.00","Revenues","9222","Services - Fees and Charges","08/01/2016"
"Wolverhampton City Council","http://opendatacommunities.org/id/metropolitan-district-council/wolverhampton","MAPLIN WOLVERHAMPT WV1","10.82","Public Health Support Costs","5732","Equipment - Purchase","08/01/2016"
"Wolverhampton City Council","http://opendatacommunities.org/id/metropolitan-district-council/wolverhampton","THE CONSORTIUM/WMS","125.18","Education And Access","5968","Materials","08/01/2016"
"Wolverhampton City Council","http://opendatacommunities.org/id/metropolitan-district-council/wolverhampton","LAB TEK INSTRUMENTS","182.00","Audience Development","5065","Marketing \ Non-staff advertising","08/01/2016"
"Wolverhampton City Council","http://opendatacommunities.org/id/metropolitan-district-council/wolverhampton","OFFICE DEPOT","4.01","MAST 1 - Deansfield","5111","Stationery","08/01/2016"
"Wolverhampton City Council","http://opendatacommunities.org/id/metropolitan-district-council/wolverhampton","FACEBOOK PX4KB8EB92","588.59","Communications & Marketing - General","7311","Marketing \ Non-staff advertising","08/01/2016"
"Wolverhampton City Council","http://opendatacommunities.org/id/metropolitan-district-council/wolverhampton","THE COAL AUTHORITY","207.00","HRA General","9399","Services - Professional Fees","08/01/2016"
"Wolverhampton City Council","http://opendatacommunities.org/id/metropolitan-district-council/wolverhampton","SAFETYSHOP","50.00","Aldersley Leisure Village","5099","Equipment - Purchase","07/01/2016"
"Wolverhampton City Council","http://opendatacommunities.org/id/metropolitan-district-council/wolverhampton","Amazon EU","31.53","Mayoral Expenses","5969","Equipment - Purchase","07/01/2016"
"Wolverhampton City Council","http://opendatacommunities.org/id/metropolitan-district-council/wolverhampton","GREENHOUS VOLKSWAGEN V","58.97","Fleet Management","5521","Equipment - Purchase","07/01/2016"
"Wolverhampton City Council","http://opendatacommunities.org/id/metropolitan-district-council/wolverhampton","SAINSBURYS 2040","134.18","Children's Village Nursery","5411","School Meals","07/01/2016"
"Wolverhampton City Council","http://opendatacommunities.org/id/metropolitan-district-council/wolverhampton","Amazon UK Marketplace","9.24","Information & Intelligence","5942","Books","07/01/2016"
"Wolverhampton City Council","http://opendatacommunities.org/id/metropolitan-district-council/wolverhampton","TRAINLINE","78.34","Adoption and Residence Team & Allowances","4112","Public Transport","07/01/2016"
"Wolverhampton City Council","http://opendatacommunities.org/id/metropolitan-district-council/wolverhampton","MATALAN","29.00","Pupil Premium","5691","Clothing / Uniforms","07/01/2016"
"Wolverhampton City Council","http://opendatacommunities.org/id/metropolitan-district-council/wolverhampton","CENTURY ELECTRICAL WHO","-5.80","Caretakers Community Centre","5065","R&M - Departmental planned (external)","07/01/2016"
"Wolverhampton City Council","http://opendatacommunities.org/id/metropolitan-district-council/wolverhampton","OFFICE STATIONERS","20.78","Traffic Signals","5943","Computing - Purchase of Hardware","07/01/2016"
"Wolverhampton City Council","http://opendatacommunities.org/id/metropolitan-district-council/wolverhampton","WWW.SEVERNTRENTSEARCHE","455.00","HRA General","4900","Services - Professional Fees","07/01/2016"
"Wolverhampton City Council","http://opendatacommunities.org/id/metropolitan-district-council/wolverhampton","SAINSBURYS 2040","27.75","Ernest Bold Court","5411","Provisions (Not for resale)","07/01/2016"
"Wolverhampton City Council","http://opendatacommunities.org/id/metropolitan-district-council/wolverhampton","TESCO STORES 5403","10.65","Swan Bank","5411","Provisions (Not for resale)","07/01/2016"
"Wolverhampton City Council","http://opendatacommunities.org/id/metropolitan-district-council/wolverhampton","IKEA ONLINE","23.00","Information & Intelligence","5719","Equipment - Purchase","07/01/2016"
"Wolverhampton City Council","http://opendatacommunities.org/id/metropolitan-district-council/wolverhampton","BLITZ RECYCLING LTD","228.00","Children's Village Children Centre","7394","Equipment - Purchase","07/01/2016"
"Wolverhampton City Council","http://opendatacommunities.org/id/metropolitan-district-council/wolverhampton","Virgintrains.co.uk","179.00","Delivery & OCE Development","4112","Public Transport","07/01/2016"
"Wolverhampton City Council","http://opendatacommunities.org/id/metropolitan-district-council/wolverhampton","PREMIER INN","66.67","Agresso System Support","3811","Subsistence","07/01/2016"
"Wolverhampton City Council","http://opendatacommunities.org/id/metropolitan-district-council/wolverhampton","WWW.SEVERNTRENTSEARCHE","455.00","HRA General","4900","Services - Professional Fees","07/01/2016"
"Wolverhampton City Council","http://opendatacommunities.org/id/metropolitan-district-council/wolverhampton","CENTURY ELECTRICAL WHO","20.22","Caretakers Community Centre","5065","R&M - Departmental planned (external)","07/01/2016"
"Wolverhampton City Council","http://opendatacommunities.org/id/metropolitan-district-council/wolverhampton","ARGOS LTD","193.08","Graiseley - CIN SWU S17","5310","Furniture","07/01/2016"
"Wolverhampton City Council","http://opendatacommunities.org/id/metropolitan-district-council/wolverhampton","WHITMORE REANS GLASS","2.50","Aldersley Leisure Village","5231","Equipment - Purchase","07/01/2016"
"Wolverhampton City Council","http://opendatacommunities.org/id/metropolitan-district-council/wolverhampton","HMCOURTS-SERVICE.G","20.00","Mental Health Assessment & Care Mgmt","9222","Services - Fees and Charges","07/01/2016"
"Wolverhampton City Council","http://opendatacommunities.org/id/metropolitan-district-council/wolverhampton","OFFICE DEPOT","6.85","Ground Maintenance West","5111","Stationery","07/01/2016"
"Wolverhampton City Council","http://opendatacommunities.org/id/metropolitan-district-council/wolverhampton","B&M RETAIL LTD","19.52","Graiseley - CIN SWU S17","5310","Equipment - Purchase","07/01/2016"
"Wolverhampton City Council","http://opendatacommunities.org/id/metropolitan-district-council/wolverhampton","WEST COAST TRAINS","105.80","Graiseley - CIN SWU S17","4112","Public Transport","07/01/2016"
"Wolverhampton City Council","http://opendatacommunities.org/id/metropolitan-district-council/wolverhampton","Amazon EU","9.46","Information & Intelligence","5969","Stationery","07/01/2016"
"Wolverhampton City Council","http://opendatacommunities.org/id/metropolitan-district-council/wolverhampton","H JENKINSON & COMP","202.80","Adoption and Residence Team & Allowances","5111","Equipment - Purchase","07/01/2016"
"Wolverhampton City Council","http://opendatacommunities.org/id/metropolitan-district-council/wolverhampton","Amazon UK Marketplace","1.98","Legal Services","5942","Stationery","07/01/2016"
"Wolverhampton City Council","http://opendatacommunities.org/id/metropolitan-district-council/wolverhampton","WEST MID TRAVEL","495.85","Youth Offending Team","4131","Public Transport","07/01/2016"
"Wolverhampton City Council","http://opendatacommunities.org/id/metropolitan-district-council/wolverhampton","NEWHAMPTON ARTS CENTRE","123.50","Music Support Team","5971","Services - Professional Fees","07/01/2016"
"Wolverhampton City Council","http://opendatacommunities.org/id/metropolitan-district-council/wolverhampton","SAINSBURYS (2340)","65.87","Creative Studies Delivery Area","5411","Provisions (Not for resale)","07/01/2016"
"Wolverhampton City Council","http://opendatacommunities.org/id/metropolitan-district-council/wolverhampton","OFFICE DEPOT","11.61","Children's Village Children Centre","5111","Stationery","07/01/2016"
"Wolverhampton City Council","http://opendatacommunities.org/id/metropolitan-district-council/wolverhampton","ONE STOP 1009","7.56","MAST 1 - Deansfield","5411","Comms - Postage","07/01/2016"
"Wolverhampton City Council","http://opendatacommunities.org/id/metropolitan-district-council/wolverhampton","PREMIER INN","88.33","Agresso System Support","3811","Subsistence","07/01/2016"
"Wolverhampton City Council","http://opendatacommunities.org/id/metropolitan-district-council/wolverhampton","FONE SHACK UK LTD","23.30","Parks - Ranger Service","4812","Equipment - Purchase","07/01/2016"
"Wolverhampton City Council","http://opendatacommunities.org/id/metropolitan-district-council/wolverhampton","SAINSBURYS (2340)","6.50","Pupil Premium","5411","Clothing / Uniforms","07/01/2016"
"Wolverhampton City Council","http://opendatacommunities.org/id/metropolitan-district-council/wolverhampton","Amazon EU","36.80","Information & Intelligence","5969","Equipment - Purchase","07/01/2016"
"Wolverhampton City Council","http://opendatacommunities.org/id/metropolitan-district-council/wolverhampton","COOPERATIVE HEALTH","12.17","Assessment Team (East)","5912","First Aid Requisites","06/01/2016"
"Wolverhampton City Council","http://opendatacommunities.org/id/metropolitan-district-council/wolverhampton","OFFICE DEPOT","6.68","Welfare Rights","5111","Stationery","06/01/2016"
"Wolverhampton City Council","http://opendatacommunities.org/id/metropolitan-district-council/wolverhampton","WWW.POSTURITE.CO.UK","119.88","Adoption and Residence Team & Allowances","5021","Furniture","06/01/2016"
"Wolverhampton City Council","http://opendatacommunities.org/id/metropolitan-district-council/wolverhampton","WWW.STASS.CO.UK","317.00","SEN Sensory Inclusion","2741","Equipment - Purchase","06/01/2016"
"Wolverhampton City Council","http://opendatacommunities.org/id/metropolitan-district-council/wolverhampton","OFFICE DEPOT","1.86","Ground Maintenance West","5111","Stationery","06/01/2016"
"Wolverhampton City Council","http://opendatacommunities.org/id/metropolitan-district-council/wolverhampton","TIMPSON LTD","12.50","Bert Williams Leisure Centre","7251","Equipment - Purchase","06/01/2016"
"Wolverhampton City Council","http://opendatacommunities.org/id/metropolitan-district-council/wolverhampton","TRAINLINE","18.92","SEN Special Education Admin","4112","Public Transport","06/01/2016"
"Wolverhampton City Council","http://opendatacommunities.org/id/metropolitan-district-council/wolverhampton","CUMMINGS BROTHERS LOCK","45.83","Caretakers Community Centre","7399","R&M - Departmental planned (external)","06/01/2016"
"Wolverhampton City Council","http://opendatacommunities.org/id/metropolitan-district-council/wolverhampton","Amazon UK Marketplace","16.62","Independent Living Service","5942","Computing - Purchase of Hardware","06/01/2016"
"Wolverhampton City Council","http://opendatacommunities.org/id/metropolitan-district-council/wolverhampton","Amazon EU","39.33","Technical Support","5969","Equipment - Purchase","06/01/2016"
"Wolverhampton City Council","http://opendatacommunities.org/id/metropolitan-district-council/wolverhampton","TRAINLINE","61.10","Delivery & OCE Development","4112","Public Transport","06/01/2016"
"Wolverhampton City Council","http://opendatacommunities.org/id/metropolitan-district-council/wolverhampton","EAST & WEST AID","135.00","Graiseley - CIN SWU S17","8398","Furniture","06/01/2016"
"Wolverhampton City Council","http://opendatacommunities.org/id/metropolitan-district-council/wolverhampton","Amazon UK Marketplace","6.65","Aldersley Leisure Village Bar","5942","Stationery","06/01/2016"
"Wolverhampton City Council","http://opendatacommunities.org/id/metropolitan-district-council/wolverhampton","ARGOS DIRECT","-119.94","Graiseley - CIN SWU S17","5310","Equipment - Purchase","06/01/2016"
"Wolverhampton City Council","http://opendatacommunities.org/id/metropolitan-district-council/wolverhampton","TFM FARM & COUNTRY SUP","119.15","Northicote Farm","5399","Equipment - Purchase","06/01/2016"
"Wolverhampton City Council","http://opendatacommunities.org/id/metropolitan-district-council/wolverhampton","SANDWELL MBC/INET","30.00","Head of Service - CINCP","9399","Services - Professional Fees","06/01/2016"
"Wolverhampton City Council","http://opendatacommunities.org/id/metropolitan-district-council/wolverhampton","EDF ENERGY-IVR","8.41","LAC Transitions Team","4900","Client Allowances","06/01/2016"
"Wolverhampton City Council","http://opendatacommunities.org/id/metropolitan-district-council/wolverhampton","OFFICE DEPOT","54.02","MAST 5 - Valley Park","5111","Stationery","06/01/2016"
"Wolverhampton City Council","http://opendatacommunities.org/id/metropolitan-district-council/wolverhampton","BLOOMS MENSWEAR","250.00","Mayoral Expenses","5611","Clothing / Uniforms","06/01/2016"
"Wolverhampton City Council","http://opendatacommunities.org/id/metropolitan-district-council/wolverhampton","PREMIER INN 44536720","97.49","Fostering Team & Allowances","5812","Accommodation Costs","06/01/2016"
"Wolverhampton City Council","http://opendatacommunities.org/id/metropolitan-district-council/wolverhampton","ASDA SUPERSTORE","27.00","Whitmore Reans - CIN SWU S17","5411","Provisions (Not for resale)","06/01/2016"
"Wolverhampton City Council","http://opendatacommunities.org/id/metropolitan-district-council/wolverhampton","CURRYS S/S","79.98","Children & Family Contact Services","5732","Equipment - Purchase","06/01/2016"
"Wolverhampton City Council","http://opendatacommunities.org/id/metropolitan-district-council/wolverhampton","THE COAL AUTHORITY","69.00","HRA General","9399","Services - Professional Fees","06/01/2016"
"Wolverhampton City Council","http://opendatacommunities.org/id/metropolitan-district-council/wolverhampton","Amazon EU","10.48","Information & Intelligence","5969","Stationery","06/01/2016"
"Wolverhampton City Council","http://opendatacommunities.org/id/metropolitan-district-council/wolverhampton","SAINSBURYS 2040","55.50","Pupil Premium","5411","Clothing / Uniforms","06/01/2016"
"Wolverhampton City Council","http://opendatacommunities.org/id/metropolitan-district-council/wolverhampton","PAYPAL  BANANAPRINT","14.90","Technical Support","8931","Stationery","06/01/2016"
"Wolverhampton City Council","http://opendatacommunities.org/id/metropolitan-district-council/wolverhampton","THE COAL AUTHORITY","69.00","HRA General","9399","Services - Professional Fees","06/01/2016"
"Wolverhampton City Council","http://opendatacommunities.org/id/metropolitan-district-council/wolverhampton","WM MORRISON 024","27.38","Ernest Bold Court","5411","Provisions (Not for resale)","06/01/2016"
"Wolverhampton City Council","http://opendatacommunities.org/id/metropolitan-district-council/wolverhampton","BRITANNIA","219.17","Mental Health Assessment & Care Mgmt","7011","Services - Supplies & Services to users","05/01/2016"
"Wolverhampton City Council","http://opendatacommunities.org/id/metropolitan-district-council/wolverhampton","ASDA HOME SHOPPING","213.52","Upper Pendeford Farm Childrens Home","5411","Provisions (Not for resale)","05/01/2016"
"Wolverhampton City Council","http://opendatacommunities.org/id/metropolitan-district-council/wolverhampton","SAINSBURYS SACAT 2040","2.00","Mayoral Expenses","5411","Hospitality","05/01/2016"
"Wolverhampton City Council","http://opendatacommunities.org/id/metropolitan-district-council/wolverhampton","BRITANNIA","-219.17","Mental Health Assessment & Care Mgmt","7011","Services - Supplies & Services to users","05/01/2016"
"Wolverhampton City Council","http://opendatacommunities.org/id/metropolitan-district-council/wolverhampton","FTPE WEBTIS 1","15.30","LAC Transitions Team","4112","Public Transport","05/01/2016"
"Wolverhampton City Council","http://opendatacommunities.org/id/metropolitan-district-council/wolverhampton","Amazon EU","21.36","MAST 8 - Wednesfield","5969","Equipment - Purchase","05/01/2016"
"Wolverhampton City Council","http://opendatacommunities.org/id/metropolitan-district-council/wolverhampton","Virgintrains.co.uk","12.00","Black Art Movement","4112","Public Transport","05/01/2016"
"Wolverhampton City Council","http://opendatacommunities.org/id/metropolitan-district-council/wolverhampton","Virgintrains.co.uk","11.60","Delivery & OCE Development","4112","Public Transport","05/01/2016"
"Wolverhampton City Council","http://opendatacommunities.org/id/metropolitan-district-council/wolverhampton","Amazon Svcs Europe,SAR","67.00","Technical Support","5942","Computing - Purchase of Hardware","05/01/2016"
"Wolverhampton City Council","http://opendatacommunities.org/id/metropolitan-district-council/wolverhampton","ARGOS RETAIL GROUP","227.93","Fostering Team & Allowances","5310","Equipment - Purchase","05/01/2016"
"Wolverhampton City Council","http://opendatacommunities.org/id/metropolitan-district-council/wolverhampton","POSITIVE DRIVE","34.99","MAST 8 - Wednesfield","8299","Training Expenses","05/01/2016"
"Wolverhampton City Council","http://opendatacommunities.org/id/metropolitan-district-council/wolverhampton","ASDA HOME SHOPPING","-5.92","Upper Pendeford Farm Childrens Home","5411","Provisions (Not for resale)","05/01/2016"
"Wolverhampton City Council","http://opendatacommunities.org/id/metropolitan-district-council/wolverhampton","OFFICE DEPOT","38.42","Revenues","5111","Stationery","05/01/2016"
"Wolverhampton City Council","http://opendatacommunities.org/id/metropolitan-district-council/wolverhampton","OYSTER RENEW WEB","50.00","Members Expenses","4112","Public Transport","05/01/2016"
"Wolverhampton City Council","http://opendatacommunities.org/id/metropolitan-district-council/wolverhampton","ROYAL CARPETS","330.00","LAC Transitions Team","5713","Client Allowances","05/01/2016"
"Wolverhampton City Council","http://opendatacommunities.org/id/metropolitan-district-council/wolverhampton","Amazon EU","9.32","MAST 8 - Wednesfield","5969","Equipment - Purchase","05/01/2016"
"Wolverhampton City Council","http://opendatacommunities.org/id/metropolitan-district-council/wolverhampton","TESCO PFS 2185","20.46","Community Enablement","5541","Provisions (Not for resale)","05/01/2016"
"Wolverhampton City Council","http://opendatacommunities.org/id/metropolitan-district-council/wolverhampton","POST OFFICE COUNTER","90.00","Safeguarding Admin Resource","9402","Comms - Postage","05/01/2016"
"Wolverhampton City Council","http://opendatacommunities.org/id/metropolitan-district-council/wolverhampton","ARGOS LTD","24.99","Fostering Team & Allowances","5310","Equipment - Purchase","05/01/2016"
"Wolverhampton City Council","http://opendatacommunities.org/id/metropolitan-district-council/wolverhampton","Cross Country","37.00","School Improvement","4112","Public Transport","05/01/2016"
"Wolverhampton City Council","http://opendatacommunities.org/id/metropolitan-district-council/wolverhampton","Amazon UK Marketplace","58.91","Building Consultancy","5942","Equipment - Purchase","05/01/2016"
"Wolverhampton City Council","http://opendatacommunities.org/id/metropolitan-district-council/wolverhampton","PO LOW HILL 1592","100.00","Intensive Family Support Unit","6011","Financial Assistance In Exceptional Circ","05/01/2016"
"Wolverhampton City Council","http://opendatacommunities.org/id/metropolitan-district-council/wolverhampton","Virgintrains.co.uk","190.00","Delivery & OCE Development","4112","Public Transport","05/01/2016"
"Wolverhampton City Council","http://opendatacommunities.org/id/metropolitan-district-council/wolverhampton","TVLICENSING.CO.UK","145.50","LAC Admin Team","7392","Client Allowances","04/01/2016"
"Wolverhampton City Council","http://opendatacommunities.org/id/metropolitan-district-council/wolverhampton","ASDA SUPERSTORE","20.20","Meals on Wheels","5411","Provisions (Not for resale)","04/01/2016"
"Wolverhampton City Council","http://opendatacommunities.org/id/metropolitan-district-council/wolverhampton","ARGOS DIRECT","86.18","Graiseley - CIN SWU S17","5310","Equipment - Purchase","04/01/2016"
"Wolverhampton City Council","http://opendatacommunities.org/id/metropolitan-district-council/wolverhampton","ARGOS DIRECT","119.94","Graiseley - CIN SWU S17","5310","Equipment - Purchase","04/01/2016"
"Wolverhampton City Council","http://opendatacommunities.org/id/metropolitan-district-council/wolverhampton","EB PUBLIC MENTAL HEAL","333.33","Transformation","7399","Equipment - Purchase","04/01/2016"
"Wolverhampton City Council","http://opendatacommunities.org/id/metropolitan-district-council/wolverhampton","RYMAN","9.98","Physical & Sensory Disabilities Mgmt","5943","Stationery","01/01/2016"
"Wolverhampton City Council","http://opendatacommunities.org/id/metropolitan-district-council/wolverhampton","Virgintrains.co.uk","73.25","Black Art Movement","4112","Public Transport","01/01/2016"
"Wolverhampton City Council","http://opendatacommunities.org/id/metropolitan-district-council/wolverhampton","FACEBOOK AXWTY7NB92","246.03","Communications & Marketing - General","7311","Marketing \ Non-staff advertising","01/01/2016"
"Wolverhampton City Council","http://opendatacommunities.org/id/metropolitan-district-council/wolverhampton","ASDA HOME SHOPPING","-0.24","Ernest Bold Court","5411","Provisions (Not for resale)","01/01/2016"
"Wolverhampton City Council","http://opendatacommunities.org/id/metropolitan-district-council/wolverhampton","MAUDESPORT LTD","189.01","Information & Intelligence","5941","Equipment - Purchase","01/01/2016"
"Wolverhampton City Council","http://opendatacommunities.org/id/metropolitan-district-council/wolverhampton","ASDA HOME SHOPPING","-2.00","Ernest Bold Court","5411","Provisions (Not for resale)","01/01/2016"
"Wolverhampton City Council","http://opendatacommunities.org/id/metropolitan-district-council/wolverhampton","FACEBOOK BXWTY7NB92","1.21","Communications & Marketing - General","7311","Marketing \ Non-staff advertising","01/01/2016"
"Wolverhampton City Council","http://opendatacommunities.org/id/metropolitan-district-council/wolverhampton","ONE STOP 1009","3.78","MAST 1 - Deansfield","5411","Comms - Postage","01/01/2016"
"Wolverhampton City Council","http://opendatacommunities.org/id/metropolitan-district-council/wolverhampton","FACEBOOK 8R3EH8AR92","521.17","Civic Halls Non Direct Management A/C","7311","Marketing \ Non-staff advertising","01/01/2016"
"Wolverhampton City Council","http://opendatacommunities.org/id/metropolitan-district-council/wolverhampton","ASDA HOME SHOPPING","88.04","Ernest Bold Court","5411","Provisions (Not for resale)","01/01/2016"
"Wolverhampton City Council","http://opendatacommunities.org/id/metropolitan-district-council/wolverhampton","OFFICE DEPOT","11.80","Assessment Team (East)","5111","Stationery","01/01/2016"
"Wolverhampton City Council","http://opendatacommunities.org/id/metropolitan-district-council/wolverhampton","ASDA SUPERSTORE","80.00","Meals on Wheels","5411","Catering","01/01/2016"
"Wolverhampton City Council","http://opendatacommunities.org/id/metropolitan-district-council/wolverhampton","ONE STOP 1009","18.90","MAST 1 - Deansfield","5411","Comms - Postage","01/01/2016"
"Wolverhampton City Council","http://opendatacommunities.org/id/metropolitan-district-council/wolverhampton","","","","","",""
